Workbook

Sheet Indholdfortegnelse
A2: Indholdsfortegnelse
A4: 1. | B4: Økonomiske nøgletal
A5: 2. | B5: Brændselspriser
A6: 3. | B6: CO2, SO2 og NOx priser
A7: 4. | B7: Elpriser for Danmark og nærmeste områder
A8: 5. | B8: Det årlige elforbrug
A9: 6. | B9: Det maksimale timeforbrug for fremskrivningsårene
A10: 7. | B10: Store varmepumper
A11: 8. | B11: Individuelle varmepumper og elbiler
A12: 9. | B12: Elkedler
A13: 10. | B13: Vindkapacitet på land og hav
A14: 11. | B14: Solceller
A15: 12. | B15: Kraftværker, Østdanmark
A16: 13. | B16: Kraftværker, Vestdanmark
A17: 14. | B17: Udlandsforbindelser
A18: 15. | B18: Gasdata, forbrug og produktion
A19: 16. | B19: Gasdata, forbindelser
A20: 17. | B20: Fjernvarmeforbrug

Sheet Økonomisk fremskrivning
A1: Økonomiske nøgletal | D1: Indholdsfortegnelse
C3: 2011 | D3: 2014-2015 | E3: 2015-2020 | F3: 2020-2035 | G3: 2031-2035
B4: BNP, årlig vækst | C4: 2.3 | D4: 1.5 | E4: 2.4 | F4: 1.3 | G4: 0.9
B5: Inflation, forbrugerpris | C5: 2.6 | D5: 1.8 | E5: 1.8 | F5: 1.8 | G5: 1.8
B6: Nominel rente, niveau i slutår | C6: 1.5 | D6: 0.7 | E6: 4 | F6: 4 | G6: 4
B7: Kilde: Økonomisk redegørelse, november 2013
E11: =B4 -> BNP, årlig vækst | F11: =B5 -> Inflation, forbrugerpris | G11: =B6 -> Nominel rente, niveau i slutår
D12: 2014 | E12: 1.6 | F12: 1.635371559 | G12: 0.8074999787
D13: 2015 | E13: 1.3 | F13: 1.9196981 | G13: 0.1260000048
D14: 2016 | E14: 2.6 | F14: 1.625960725 | G14: 0.2000000095
D15: 2017 | E15: 2.3 | F15: 1.75499191 | G15: 0.400000019
D16: 2018 | E16: 2.4 | F16: 1.773198589 | G16: 0.7000000216
D17: 2019 | E17: 2.4 | F17: 1.853625057 | G17: 2.400000021
D18: 2020 | E18: 2.1 | F18: 1.817150986 | G18: 3.2
D19: 2021 | E19: 2.1 | F19: 1.793195903 | G19: 4.2
D20: 2022 | E20: 2 | F20: 1.764593197 | G20: 4
D21: 2023 | E21: 1 | F21: 1.792134278 | G21: 4
D22: 2024 | E22: 1 | F22: 1.834520342 | G22: 4
D23: 2025 | E23: 1 | F23: 1.832879101 | G23: 4
D24: 2026 | E24: 1 | F24: 1.837501301 | G24: 4
D25: 2027 | E25: 1.3 | F25: 1.835241958 | G25: 4
D26: 2028 | E26: 0.9 | F26: 1.837875776 | G26: 4
D27: 2029 | E27: 1 | F27: 1.83065869 | G27: 4
D28: 2030 | E28: 1.7 | F28: 1.824304716 | G28: 4
D29: 2031 | E29: 0.7 | F29: 1.83326138 | G29: 4
D30: 2032 | E30: 1 | F30: 1.83619301 | G30: 4
D31: 2033 | E31: 0.6 | F31: 1.836701618 | G31: 4
D32: 2034 | E32: 0.7 | F32: 1.834818213 | G32: 4
D33: 2035 | E33: 1.7 | F33: 1.825663063 | G33: 4
D36: BVT-deflator
D38: 2014 | E38: 1
D39: 2015 | E39: 1.016644602
D40: 2016 | E40: 1.031724186
D41: 2017 | E41: 1.050796505
D42: 2018 | E42: 1.073249977
D43: 2019 | E43: 1.100232045
D44: 2020 | E44: 1.124205144
D45: 2021 | E45: 1.14786336
D46: 2022 | E46: 1.170797264
D47: 2023 | E47: 1.194626543
D48: 2024 | E48: 1.218611441
D49: 2025 | E49: 1.243102158
D50: 2026 | E50: 1.268166916
D51: 2027 | E51: 1.293896403
D52: 2028 | E52: 1.32038405
D53: 2029 | E53: 1.347206092
D54: 2030 | E54: 1.374277163
D55: 2031 | E55: 1.402391427
D56: 2032 | E56: 1.430992727
D57: 2033 | E57: 1.460286839
D58: 2034 | E58: 1.490078651
D59: 2035 | E59: 1.519965369
A62: Langsigtet valutakurser
B64: DKK/EUR | D64: 7.5
B65: DKK/$ | D65: 5.38
E69: Omregningsfaktorer
E70: Fra | F70: Til | G70: Til | H70: Til
E71: GJ | F71: TJ | G71: PJ | H71: GWh
E72: 1 | F72: =1/1000 -> 0.001 | G72: =1/1000000 -> 1e-06 | H72: =1/3600 -> 0.0002777777778
E74: Fra | F74: Til
E75: GWh | F75: mio. M3
E76: 1 | F76: =1/12.1 -> 0.0826446281

Sheet Brændselspriser
A1: Brændselspriser | D1: Indholdsfortegnelse
A3: Fremskrivning
B5: Faste 2014 priser
C6: Kul | D6: Olie | E6: Fuelolie | F6: Gasolie | G6: Gas | H6: Gas, dec | I6: Halm | J6: Halm, dec | K6: Træflis | L6: Træpiller | M6: Træpiller, an værk
B7: 2014 | C7: 20.76914423 | D7: 106.2161573 | E7: 98.81971009 | F7: 128.405499 | G7: 65.65629291 | H7: 71.02631623 | I7: 56.51129056 | J7: 52.09332746 | K7: 58.95969933 | L7: 63.5371921 | M7: 67.99533313
B8: 2015 | C8: 21.70929775 | D8: 102.9965416 | E8: 95.57200763 | F8: 125.0838684 | G8: 67.78516978 | H8: 73.1551931 | I8: 57.26921629 | J8: 52.85357821 | K8: 59.71487029 | L8: 64.30270044 | M8: 68.75718402
B9: 2016 | C9: 22.39785695 | D9: 101.8761276 | E9: 94.42414802 | F9: 124.0393209 | G9: 67.69556682 | H9: 73.06559014 | I9: 57.2700699 | J9: 52.85417007 | K9: 59.71603401 | L9: 64.30270044 | M9: 68.75759575
B10: 2017 | C10: 22.82196714 | D10: 103.4577398 | E10: 95.97895555 | F10: 125.6929312 | G10: 67.82534388 | H10: 73.19536721 | I10: 58.03631323 | J10: 53.62018804 | K10: 60.48254437 | L10: 64.30270044 | M10: 68.75795028
B11: 2018 | C11: 23.42496549 | D11: 106.8018639 | E11: 99.29691607 | F11: 129.1051852 | G11: 68.88921418 | H11: 74.25923751 | I11: 58.03692962 | J11: 53.62061543 | K11: 61.24889304 | L11: 65.06820878 | M11: 69.52375593
B12: 2019 | C12: 24.20685202 | D12: 111.5394302 | E12: 104.005742 | F12: 134.0161776 | G12: 70.69387176 | H12: 76.06389509 | I12: 58.80775545 | J12: 54.38981078 | K12: 61.25614238 | L12: 65.06820878 | M12: 69.52632081
B13: 2020 | C13: 25.16762672 | D13: 117.5319492 | E13: 109.9695207 | F13: 140.1821229 | G13: 72.5228361 | H13: 77.89285943 | I13: 58.81307294 | J13: 54.39349779 | K13: 62.02890006 | L13: 65.06820878 | M13: 69.52888569
B14: 2021 | C14: 25.31008499 | D14: 118.1447149 | E14: 110.5717108 | F14: 140.9027186 | G14: 72.6477884 | H14: 78.01781173 | I14: 59.58260968 | J14: 55.16179932 | K14: 62.79990033 | L14: 65.83371712 | M14: 70.29633711
B15: 2022 | C15: 25.45254325 | D15: 118.7574806 | E15: 111.1739009 | F15: 141.6233144 | G15: 72.7727407 | H15: 78.14276403 | I15: 60.35214642 | J15: 55.93010085 | K15: 62.80539225 | L15: 65.83371712 | M15: 70.2982802
B16: 2023 | C16: 25.59500152 | D16: 119.3702463 | E16: 111.776091 | F16: 142.3439102 | G16: 72.897693 | H16: 78.26771632 | I16: 60.35617483 | J16: 55.93289404 | K16: 63.57639252 | L16: 65.83371712 | M16: 70.30022329
B17: 2024 | C17: 25.73745978 | D17: 119.9830119 | E17: 112.3782811 | F17: 143.0645059 | G17: 73.0226453 | H17: 78.39266862 | I17: 61.12571157 | J17: 56.70119557 | K17: 63.58188444 | L17: 66.59922546 | M17: 71.06767472
B18: 2025 | C18: 25.87991804 | D18: 120.5957776 | E18: 112.9804712 | F18: 143.7851017 | G18: 73.1475976 | H18: 78.51762092 | I18: 61.12973997 | J18: 56.70398877 | K18: 64.35288471 | L18: 66.59922546 | M18: 71.06961781
B19: 2026 | C19: 25.92740413 | D19: 121.6170538 | E19: 113.9911718 | F19: 144.8919559 | G19: 73.52245449 | H19: 78.89247782 | I19: 61.89822933 | J19: 57.47156407 | K19: 65.12245707 | L19: 66.59922546 | M19: 71.0710557
B20: 2027 | C20: 25.97489022 | D20: 122.6383299 | E20: 115.0018723 | F20: 145.9988101 | G20: 73.89731139 | H20: 79.26733471 | I20: 61.90121034 | J20: 57.47363103 | K20: 65.1265211 | L20: 67.3647338 | M20: 71.83800192
B21: 2028 | C21: 26.02237631 | D21: 123.6596061 | E21: 116.0125729 | F21: 147.1056644 | G21: 74.27216828 | H21: 79.64219161 | I21: 62.6696997 | J21: 58.24120633 | K21: 65.89609346 | L21: 67.3647338 | M21: 71.83943981
B22: 2029 | C22: 26.0698624 | D22: 124.6808822 | E22: 117.0232734 | F22: 148.2125186 | G22: 74.64702518 | H22: 80.0170485 | I22: 63.43818906 | J22: 59.00878163 | K22: 66.66566583 | L22: 68.13024214 | M22: 72.60638603
B23: 2030 | C23: 26.11734849 | D23: 125.7021583 | E23: 118.033974 | F23: 149.3193728 | G23: 75.02188207 | H23: 80.3919054 | I23: 63.44117007 | J23: 59.01084859 | K23: 66.66972985 | L23: 68.13024214 | M23: 72.60782392
B24: 2031 | C24: 26.11734849 | D24: 127.1319449 | E24: 119.453185 | F24: 150.8176206 | G24: 75.52169127 | H24: 80.89171459 | I24: 64.20885375 | J24: 59.77786525 | K24: 67.43820383 | L24: 68.13024214 | M24: 72.60887319
B25: 2032 | C25: 26.11734849 | D25: 128.5617315 | E25: 120.872396 | F25: 152.3158684 | G25: 76.02150046 | H25: 81.39152379 | I25: 64.21102909 | J25: 59.77937357 | K25: 67.44116947 | L25: 68.89575047 | M25: 73.3754308
B26: 2033 | C26: 26.11734849 | D26: 129.9915181 | E26: 122.291607 | F26: 153.8141162 | G26: 76.52130966 | H26: 81.89133298 | I26: 64.97871276 | J26: 60.54639024 | K26: 68.20964345 | L26: 68.89575047 | M26: 73.37648006
B27: 2034 | C27: 26.11734849 | D27: 131.4213047 | E27: 123.710818 | F27: 155.3123639 | G27: 77.02111885 | H27: 82.39114217 | I27: 64.9808881 | J27: 60.54789856 | K27: 68.21260909 | L27: 68.89575047 | M27: 73.37752933
B28: 2035 | C28: 26.11734849 | D28: 132.8510913 | E28: 125.130029 | F28: 156.8106117 | G28: 77.52092804 | H28: 82.89095137 | I28: 65.74857178 | J28: 61.31491522 | K28: 68.98108307 | L28: 69.66125881 | M28: 74.14408694
B29: DKK/GJ

Sheet CO2, NOx og SO2 priser
A1: CO2 pris | C1: Indholdsfortegnelse
A3: Fremskrivning
C5: Faste 2014 priser | H5: 2012-2035
B6: 2014 | C6: 38.9882475 | G6: SO2 | H6: 10 | I6: DKK/kg
B7: 2015 | C7: 45.07607513 | G7: NOx | H7: 25 | I7: DKK/kg
B8: 2016 | C8: 53.71196835
B9: 2017 | C9: 65.48538587
B10: 2018 | C10: 80.09263097
B11: 2019 | C11: 98.0258535
B12: 2020 | C12: 119.2850534
B13: 2021 | C13: 127.0385819
B14: 2022 | C14: 134.7921104
B15: 2023 | C15: 142.5456389
B16: 2024 | C16: 150.2991673
B17: 2025 | C17: 158.0526958
B18: 2026 | C18: 165.8062243
B19: 2027 | C19: 173.5597528
B20: 2028 | C20: 181.3132812
B21: 2029 | C21: 189.0668097
B22: 2030 | C22: 196.8203382
B23: 2031 | C23: 205.1702919
B24: 2032 | C24: 213.5202457
B25: 2033 | C25: 221.8701994
B26: 2034 | C26: 230.2201532
B27: 2035 | C27: 238.5701069
B28: DKK/Ton

Sheet Elpriser
A1: Elpriser for Danmark og nærmeste områder | F1: Indholdsfortegnelse
A3: Fremskrivning
B4: Elpriserne er et resultat af modelkørsler fra SIVAEL og BID modellerne.
P5: Udgangspunktet er nedenstående simuleringspriser fra SIVAEL og BID
B6: År | C6: DK1 | D6: DK2 | E6: DK | F6: NO (NSY) | G6: SE3 | H6: SE4 | I6: DE | J6: NL | K6: UK | P6: DKw | Q6: Dke | R6: Norge, Sverige | S6: Tyskland | T6: Holland | U6: UK
A7: Forward | B7: 2014 | C7: 263.625 | D7: 276.375 | E7: 268.8065834 | F7: 236.625 | G7: 261 | H7: 265.1572332 | I7: 266.4375 | J7: 323.0625 | K7: 365.0623885 | P7: 339 | Q7: 343 | R7: 317 | S7: 378 | T7: 414 | U7: 454
A8: Forward | B8: 2015 | C8: 248.9070414 | D8: 259.2351345 | E8: 253.109497 | F8: 226.1852368 | G8: 240.9396554 | H8: 246.2189007 | I8: 257.0957438 | J8: 317.9577204 | K8: 392.0986738 | P8: 339 | Q8: 345 | R8: 327 | S8: 390 | T8: 427 | U8: 468
A9: Forward | B9: 2016 | C9: 244.2513255 | D9: 252.8291995 | E9: 247.7444102 | F9: 217.7180714 | G9: 234.6557377 | H9: 238.8870869 | I9: 247.7406302 | J9: 298.7717107 | K9: 389.7117131 | P9: 350 | Q9: 356 | R9: 337 | S9: 401 | T9: 440 | U9: 482
A10: Interpolation | B10: 2017 | C10: 292.1884941 | D10: 301.3718996 | E10: 295.9295218 | F10: 275.0385536 | G10: 285.4918033 | H10: 288.6653152 | I10: 294.8054726 | J10: 359.078783 | K10: 447.2837849 | P10: 359 | Q10: 364 | R10: 346 | S10: 412 | T10: 452 | U10: 495
A11: Interpolation | B11: 2018 | C11: 340.1256628 | D11: 349.9145997 | E11: 344.1146334 | F11: 332.3590357 | G11: 336.3278689 | H11: 338.4435435 | I11: 341.8703151 | J11: 419.3858553 | K11: 504.8558566 | P11: 395 | Q11: 395 | R11: 356 | S11: 423 | T11: 464 | U11: 508
A12: Interpolation | B12: 2019 | C12: 388.0628314 | D12: 398.4572999 | E12: 392.299745 | F12: 389.6795179 | G12: 387.1639344 | H12: 388.2217717 | I12: 388.9351575 | J12: 479.6929277 | K12: 562.4279283 | P12: 405 | Q12: 408 | R12: 365 | S12: 434 | T12: 476 | U12: 521
A13: BID/SIVAEL priser | B13: 2020 | C13: 436 | D13: 447 | E13: 440.4848566 | F13: 447 | G13: 438 | H13: 438 | I13: 436 | J13: 540 | K13: 620 | P13: 420 | Q13: 417 | R13: 373 | S13: 445 | T13: 488 | U13: 534
B14: 2021 | C14: 437 | D14: 449 | E14: 441.8917439 | F14: 446 | G14: 436 | H14: 437 | I14: 438 | J14: 534 | K14: 616 | P14: 425 | Q14: 422 | R14: 378 | S14: 451 | T14: 494 | U14: 541
B15: 2022 | C15: 438 | D15: 451 | E15: 443.2986358 | F15: 444 | G15: 435 | H15: 435 | I15: 441 | J15: 529 | K15: 611 | P15: 430 | Q15: 427 | R15: 383 | S15: 456 | T15: 500 | U15: 548
B16: 2023 | C16: 439 | D16: 454 | E16: 445.1102532 | F16: 442 | G16: 434 | H16: 434 | I16: 443 | J16: 524 | K16: 607 | P16: 434 | Q16: 432 | R16: 387 | S16: 461 | T16: 506 | U16: 554
B17: 2024 | C17: 440 | D17: 456 | E17: 446.5181571 | F17: 440 | G17: 433 | H17: 433 | I17: 445 | J17: 518 | K17: 603 | P17: 438 | Q17: 437 | R17: 392 | S17: 466 | T17: 511 | U17: 560
B18: 2025 | C18: 441 | D18: 458 | E18: 447.9266356 | F18: 439 | G18: 431 | H18: 432 | I18: 447 | J18: 513 | K18: 598 | P18: 441 | Q18: 441 | R18: 396 | S18: 471 | T18: 517 | U18: 566
B19: 2026 | C19: 442 | D19: 460 | E19: 449.3340848 | F19: 437 | G19: 430 | H19: 430 | I19: 449 | J19: 508 | K19: 594 | P19: 444 | Q19: 445 | R19: 400 | S19: 476 | T19: 522 | U19: 572
B20: 2027 | C20: 443 | D20: 462 | E20: 450.7415339 | F20: 435 | G20: 429 | H20: 429 | I20: 451 | J20: 503 | K20: 589 | P20: 446 | Q20: 448 | R20: 404 | S20: 481 | T20: 528 | U20: 578
B21: 2028 | C21: 444 | D21: 464 | E21: 452.1489831 | F21: 434 | G21: 428 | H21: 428 | I21: 453 | J21: 497 | K21: 585 | P21: 452 | Q21: 453 | R21: 408 | S21: 486 | T21: 533 | U21: 584
B22: 2029 | C22: 445 | D22: 466 | E22: 453.5564322 | F22: 432 | G22: 426 | H22: 427 | I22: 455 | J22: 492 | K22: 581 | P22: 455 | Q22: 457 | R22: 412 | S22: 491 | T22: 538 | U22: 589
B23: 2030 | C23: 446 | D23: 468 | E23: 454.9638814 | F23: 430 | G23: 425 | H23: 425 | I23: 458 | J23: 487 | K23: 576 | P23: 460 | Q23: 465 | R23: 416 | S23: 495 | T23: 543 | U23: 594
B24: 2031 | C24: 446 | D24: 469 | E24: 455.3713305 | F24: 429 | G24: 425 | H24: 425 | I24: 459 | J24: 484 | K24: 574 | P24: 462 | Q24: 469 | R24: 420 | S24: 500 | T24: 549 | U24: 601
B25: 2032 | C25: 447 | D25: 470 | E25: 456.3713305 | F25: 428 | G25: 424 | H25: 424 | I25: 460 | J25: 482 | K25: 572 | P25: 467 | Q25: 473 | R25: 424 | S25: 506 | T25: 554 | U25: 607
B26: 2033 | C26: 448 | D26: 471 | E26: 457.3713305 | F26: 427 | G26: 423 | H26: 423 | I26: 461 | J26: 479 | K26: 570 | P26: 473 | Q26: 481 | R26: 429 | S26: 510 | T26: 560 | U26: 613
B27: 2034 | C27: 448 | D27: 472 | E27: 457.7787797 | F27: 427 | G27: 423 | H27: 423 | I27: 462 | J27: 476 | K27: 567 | P27: 477 | Q27: 484 | R27: 433 | S27: 515 | T27: 565 | U27: 618
B28: 2035 | C28: 449 | D28: 473 | E28: 458.7787797 | F28: 426 | G28: 422 | H28: 422 | I28: 463 | J28: 474 | K28: 565 | P28: 478 | Q28: 489 | R28: 436 | S28: 520 | T28: 570 | U28: 624
B29: 2014 DKK/MWh
E30: Forward priser fra Nasdaq
E31: Interpolerede priser mellem forward og simlueringspriserne
E32: Simulerede elpriser fra Energinet.dk's energimodeller

Sheet Elforbrug
A1: Det årlige elforbrug | D1: Indholdsfortegnelse
A3: Fremskrivning | AE3: Samlet forbrug | AG3: Klassisk forbrug
AE4: Vestdanmark | AF4: Østdanmark | AG4: Vestdanmark | AH4: Østdanmark
C5: Forbrug, ab værk | F5: Nettab | G5: Nettab | H5: Total an forbruger | N5: Klassisk forbrug | P5: Individuelle varmepumper | R5: Elbiler | T5: Elkedler & store varmepumper | V5: Total | AD5: 2003 | AE5: 20647.7125 | AF5: 14171.9126 | AG5: 20647.7125 | AH5: 14171.9126
C6: øst | D6: vest | E6: Samlet | F6: øst | G6: vest | H6: Samlet | N6: vest | O6: øst | P6: vest | Q6: øst | R6: vest | S6: øst | T6: vest | U6: øst | V6: vest | W6: øst | AD6: 2004 | AE6: 20852.9188 | AF6: 14256.2007 | AG6: 20852.9188 | AH6: 14256.2007
B7: 2014 | C7: 13966.36148 | D7: 20672.93256 | E7: 34639.29403 | F7: 786.3637629 | G7: 1340.024729 | H7: 32512.90554 | M7: 2014 | N7: 20270.24777 | O7: 13747.9712 | P7: 207.1268609 | Q7: 140.4804791 | R7: 5.86051195 | S7: 3.974798454 | T7: 187.4410714 | U7: 73.67 | V7: 20652.77664 | W7: 13966.09648 | AD7: 2005 | AE7: 21008.1494 | AF7: 14445.7451 | AG7: 21008.1494 | AH7: 14445.7451
B8: 2015 | C8: 14055.67246 | D8: 20771.2176 | E8: 34826.89005 | F8: 790.3796491 | G8: 1344.097286 | H8: 32692.41312 | M8: 2015 | N8: 20305.81885 | O8: 13800.48757 | P8: 228.1568364 | Q8: 155.062724 | R8: 11.51139215 | S8: 7.823512333 | T8: 222.8627471 | U8: 91.47336803 | V8: 20750.03754 | W8: 14054.84717 | AD8: 2006 | AE8: 21397.7423 | AF8: 14577.2842 | AG8: 21397.7423 | AH8: 14577.2842
B9: 2016 | C9: 14143.58542 | D9: 20877.50801 | E9: 35021.09342 | F9: 795.1835231 | G9: 1350.448417 | H9: 32875.46148 | M9: 2016 | N9: 20372.65078 | O9: 13864.55038 | P9: 249.7443651 | Q9: 169.9628277 | R9: 20.17351942 | S9: 13.7290321 | T9: 231.1544313 | U9: 94.21503331 | V9: 20849.90795 | W9: 14142.45727 | AD9: 2007 | AE9: 21595.5077 | AF9: 14515.8935 | AG9: 21595.5077 | AH9: 14515.8935
B10: 2017 | C10: 14289.57712 | D10: 21124.964 | E10: 35414.54112 | F10: 801.3568474 | G10: 1359.381155 | H10: 33253.80312 | M10: 2017 | N10: 20477.62664 | O10: 13951.89518 | P10: 269.4534239 | Q10: 183.5850411 | R10: 32.03187475 | S10: 21.82407986 | T10: 330.9758778 | U10: 127.4517119 | V10: 21020.00146 | W10: 14284.75602 | AD10: 2008 | AE10: 21622.1355 | AF10: 14476.7318 | AG10: 21622.1355 | AH10: 14476.7318
B11: 2018 | C11: 14440.68453 | D11: 21395.02956 | E11: 35835.71409 | F11: 807.8197395 | G11: 1369.793023 | H11: 33658.10132 | M11: 2018 | N11: 20592.94425 | O11: 14036.11224 | P11: 298.0394551 | Q11: 203.1431345 | R11: 47.28107685 | S11: 32.22669344 | T11: 430.7973242 | U11: 160.6883905 | V11: 21212.70453 | W11: 14432.17046 | AD11: 2009 | AE11: 20555.0257 | AF11: 14050.9272 | AG11: 20555.0257 | AH11: 14050.9272
B12: 2019 | C12: 14600.23144 | D12: 21673.45034 | E12: 36273.68179 | F12: 814.7603399 | G12: 1380.751495 | H12: 34078.16995 | M12: 2019 | N12: 20714.70795 | O12: 14127.39378 | P12: 324.965857 | Q12: 221.6261334 | R12: 66.09903691 | S12: 45.07942497 | T12: 530.6187706 | U12: 193.925069 | V12: 21413.76283 | W12: 14588.02441 | AD12: 2010 | AE12: 21120.6205 | AF12: 14376.1069 | AG12: 21120.6205 | AH12: 14376.1069
B13: 2020 | C13: 14760.14203 | D13: 21976.70594 | E13: 36736.84797 | F13: 821.0624185 | G13: 1391.548632 | H13: 34524.23692 | M13: 2020 | N13: 20829.89751 | O13: 14204.75658 | P13: 352.2193667 | Q13: 240.1927501 | R13: 88.69791883 | S13: 60.48672806 | T13: 657.741139 | U13: 238.8059745 | V13: 21639.65594 | W13: 14744.24203 | AD13: 2011 | AE13: 20707.4539 | AF13: 13888.4557 | AG13: 20707.4539 | AH13: 13888.4557
B14: 2021 | C14: 14935.63663 | D14: 22245.9501 | E14: 37181.58673 | F14: 829.4154974 | G14: 1406.106743 | H14: 34946.06449 | M14: 2021 | N14: 21004.16508 | O14: 14319.50993 | P14: 375.990078 | Q14: 256.3298106 | R14: 113.1907718 | S14: 77.16737967 | T14: 700.5308436 | U14: 264.2561736 | V14: 21892.13677 | W14: 14917.26329 | AD14: 2012 | AE14: 20442.0155 | AF14: 13698.1857 | AG14: 20442.0155 | AH14: 13698.1857
B15: 2022 | C15: 15137.111 | D15: 22552.45145 | E15: 37689.56245 | F15: 839.2391296 | G15: 1423.10224 | H15: 35427.22108 | M15: 2022 | N15: 21215.32348 | O15: 14459.9955 | P15: 398.241412 | Q15: 271.43442 | R15: 139.5693448 | S15: 95.12803798 | T15: 743.3205482 | U15: 289.7063728 | V15: 22181.87479 | W15: 15116.26433 | AD15: 2013 | AE15: 20047.5061 | AF15: 13478.2161 | AG15: 20047.5061 | AH15: 13478.2161
B16: 2023 | C16: 15289.45924 | D16: 22856.77433 | E16: 38146.23357 | F16: 846.2820376 | G16: 1436.45522 | H16: 35863.49631 | M16: 2023 | N16: 21369.60343 | O16: 14550.85025 | P16: 419.7552553 | Q16: 285.8169961 | R16: 167.88539 | S16: 114.3154189 | T16: 834.2602529 | U16: 315.1565719 | V16: 22415.93433 | W16: 15266.13924 | AD16: 2014 | AE16: =V7 -> 20652.77664 | AF16: =W7 -> 13966.09648 | AG16: =N7 -> 20270.24777 | AH16: =O7 -> 13747.9712
B17: 2024 | C17: 15457.56013 | D17: 23174.26487 | E17: 38631.82499 | F17: 852.7166049 | G17: 1447.169636 | H17: 36331.93875 | M17: 2024 | N17: 21481.73008 | O17: 14629.29545 | P17: 441.2755429 | Q17: 300.5135186 | R17: 198.0159533 | S17: 134.8510513 | T17: 973.3499575 | U17: 364.4567711 | V17: 22609.66153 | W17: 15405.26679 | AD17: 2015 | AE17: 20750.03754 | AF17: 14054.84717 | AG17: 20305.81885 | AH17: 13800.48757
B18: 2025 | C18: 15612.36277 | D18: 23469.4419 | E18: 39081.80468 | F18: 858.3984417 | G18: 1456.42429 | H18: 36766.98195 | M18: 2025 | N18: 21567.84152 | O18: 14691.85279 | P18: 464.631044 | Q18: 316.5032019 | R18: 230.013009 | S18: 156.6831463 | T18: 1112.439662 | U18: 413.7569702 | V18: 22781.07524 | W18: 15531.09611 | AD18: 2016 | AE18: 20849.90795 | AF18: 14142.45727 | AG18: 20372.65078 | AH18: 13864.55038
B19: 2026 | C19: 15793.05372 | D19: 23767.75057 | E19: 39560.80429 | F19: 864.1660385 | G19: 1466.210035 | H19: 37230.42821 | M19: 2026 | N19: 21656.99382 | O19: 14752.58267 | P19: 491.160996 | Q19: 334.5752073 | R19: 263.9128564 | S19: 179.7754695 | T19: 1246.542897 | U19: 484.78037 | V19: 22955.62057 | W19: 15656.31372 | AD19: 2017 | AE19: 21020.00146 | AF19: 14284.75602 | AG19: 20477.62664 | AH19: 13951.89518
B20: 2027 | C20: 15989.15393 | D20: 24023.02789 | E20: 40012.18181 | F20: 869.3058579 | G20: 1474.930644 | H20: 37667.94531 | M20: 2027 | N20: 21725.73948 | O20: 14799.4117 | P20: 519.9346407 | Q20: 354.1755995 | R20: 299.6943015 | S20: 204.149523 | T20: 1356.571132 | U20: 579.6537697 | V20: 23113.88455 | W20: 15770.44059 | AD20: 2018 | AE20: 21212.70453 | AF20: 14432.17046 | AG20: 20592.94425 | AH20: 14036.11224
B21: 2028 | C21: 16172.58579 | D21: 24179.4579 | E21: 40352.04369 | F21: 873.7286012 | G21: 1482.434608 | H21: 37995.88048 | M21: 2028 | N21: 21771.67924 | O21: 14830.70552 | P21: 551.0348605 | Q21: 375.3608373 | R21: 337.3577698 | S21: 229.8055967 | T21: 1394.374367 | U21: 674.5271694 | V21: 23253.55124 | W21: 15871.89912 | AD21: 2019 | AE21: 21413.76283 | AF21: 14588.02441 | AG21: 20714.70795 | AH21: 14127.39378
B22: 2029 | C22: 16357.89578 | D22: 24338.64503 | E22: 40696.54081 | F22: 878.2576534 | G22: 1490.118944 | H22: 38328.16421 | M22: 2029 | N22: 21809.11296 | O22: 14856.20509 | P22: 591.5159869 | Q22: 402.9362786 | R22: 376.9034809 | S22: 256.7438402 | T22: 1432.177602 | U22: 769.4005691 | V22: 23395.97503 | W22: 15975.23578 | AD22: 2020 | AE22: 21639.65594 | AF22: 14744.24203 | AG22: 20829.89751 | AH22: 14204.75658
B23: 2030 | C23: 16495.776 | D23: 24544.91169 | E23: 41040.68769 | F23: 884.6020016 | G23: 1500.883249 | H23: 38655.20244 | M23: 2030 | N23: 21885.90367 | O23: 14908.51435 | P23: 637.8371201 | Q23: 434.4898891 | R23: 418.3317348 | S23: 284.9644578 | T23: 1469.980837 | U23: 792.7239688 | V23: 23585.47836 | W23: 16110.64266 | AD23: 2021 | AE23: 21892.13677 | AF23: 14917.26329 | AG23: 21004.16508 | AH23: 14319.50993
B24: 2031 | C24: 16609.29603 | D24: 24714.48512 | E24: 41323.78115 | F24: 889.6276639 | G24: 1509.410171 | H24: 38924.74331 | M24: 2031 | N24: 21903.75594 | O24: 14920.67518 | P24: 697.1319635 | Q24: 474.8810942 | R24: 471.5247128 | S24: 321.1991177 | T24: 1505.290837 | U24: 814.9839688 | V24: 23738.28845 | W24: 16221.68936 | AD24: 2022 | AE24: 22181.87479 | AF24: 15116.26433 | AG24: 21215.32348 | AH24: 14459.9955
B25: 2032 | C25: 16736.311 | D25: 24903.86929 | E25: 41640.18029 | F25: 895.4171903 | G25: 1519.233123 | H25: 39225.52998 | M25: 2032 | N25: 21922.7673 | O25: 14933.62558 | P25: 768.3147103 | Q25: 523.3702504 | R25: 531.4814448 | S25: 362.0411963 | T25: 1540.600837 | U25: 837.2439688 | V25: 23910.90929 | W25: 16346.231 | AD25: 2023 | AE25: 22415.93433 | AF25: 15266.13924 | AG25: 21369.60343 | AH25: 14550.85025
B26: 2033 | C26: 16863.32252 | D26: 25093.24841 | E26: 41956.57092 | F26: 901.2065216 | G26: 1529.055744 | H26: 39526.30866 | M26: 2033 | N26: 21904.19263 | O26: 14920.97265 | P26: 869.4546325 | Q26: 592.2660111 | R26: 599.061976 | S26: 408.0765501 | T26: 1575.910837 | U26: 859.5039688 | V26: 24083.52507 | W26: 16470.76918 | AD26: 2024 | AE26: 22609.66153 | AF26: 15405.26679 | AG26: 21481.73008 | AH26: 14629.29545
B27: 2034 | C27: 17010.76793 | D27: 25312.62475 | E27: 42323.39268 | F27: 908.1524882 | G27: 1540.840801 | H27: 39874.39939 | M27: 2034 | N27: 21877.4669 | O27: 14902.76729 | P27: 1000.149635 | Q27: 681.2944718 | R27: 675.2357105 | S27: 459.96553 | T27: 1611.220837 | U27: 881.7639688 | V27: 24286.13809 | W27: 16615.74126 | AD27: 2025 | AE27: 22781.07524 | AF27: 15531.09611 | AG27: 21567.84152 | AH27: 14691.85279
B28: 2035 | C28: 17249.67659 | D28: 25666.27041 | E28: 42915.94701 | F28: 920.2756202 | G28: 1561.409832 | H28: 40434.26155 | M28: 2035 | N28: 21916.13617 | O28: 14929.1085 | P28: 1190.033092 | Q28: 810.6416671 | R28: 761.0953175 | S28: 518.4524539 | T28: 1646.530837 | U28: 904.0239688 | V28: 24623.02041 | W28: 16852.17659 | AD28: 2026 | AE28: 22955.62057 | AF28: 15656.31372 | AG28: 21656.99382 | AH28: 14752.58267
B29: GWh/år | M29: GWh/år | N29: ab værk | AD29: 2027 | AE29: 23113.88455 | AF29: 15770.44059 | AG29: 21725.73948 | AH29: 14799.4117
AD30: 2028 | AE30: 23253.55124 | AF30: 15871.89912 | AG30: 21771.67924 | AH30: 14830.70552
AD31: 2029 | AE31: 23395.97503 | AF31: 15975.23578 | AG31: 21809.11296 | AH31: 14856.20509
AD32: 2030 | AE32: 23585.47836 | AF32: 16110.64266 | AG32: 21885.90367 | AH32: 14908.51435
AD33: 2031 | AE33: 23738.28845 | AF33: 16221.68936 | AG33: 21903.75594 | AH33: 14920.67518
AD34: 2032 | AE34: 23910.90929 | AF34: 16346.231 | AG34: 21922.7673 | AH34: 14933.62558
AD35: 2033 | AE35: 24083.52507 | AF35: 16470.76918 | AG35: 21904.19263 | AH35: 14920.97265
AD36: 2034 | AE36: 24286.13809 | AF36: 16615.74126 | AG36: 21877.4669 | AH36: 14902.76729
AD37: 2035 | AE37: 24623.02041 | AF37: 16852.17659 | AG37: 21916.13617 | AH37: 14929.1085

Sheet Effektforbrug
A1: Det maksimale timeforbrug for fremskrivningsårene | G1: Indholdsfortegnelse
A3: Fremskrivning
D6: Østdanmark | F6: Vestdanmark | H6: Danmark
D7: 2-års-vinter | E7: 10-års-vinter | F7: 2-års-vinter | G7: 10-års-vinter | H7: 2-års-vinter | I7: 10-års-vinter
C8: 2014 | D8: 2567.222775 | E8: 2670.040386 | F8: 3622.137281 | G8: 3780.708879 | H8: 6189.360056 | I8: 6450.749265
C9: 2015 | D9: 2579.80263 | E9: 2683.124065 | F9: 3632.398305 | G9: 3791.419114 | H9: 6212.200935 | I9: 6474.54318
C10: 2016 | D10: 2594.670437 | E10: 2698.587331 | F10: 3648.42027 | G10: 3808.142496 | H10: 6243.090707 | I10: 6506.729827
C11: 2017 | D11: 2613.706494 | E11: 2718.385784 | F11: 3670.997918 | G11: 3831.70856 | H11: 6284.704412 | I11: 6550.094343
C12: 2018 | D12: 2633.368213 | E12: 2738.834958 | F12: 3697.124761 | G12: 3858.979195 | H12: 6330.492974 | I12: 6597.814152
C13: 2019 | D13: 2654.250184 | E13: 2760.553254 | F13: 3724.255999 | G13: 3887.298197 | H13: 6378.506183 | I13: 6647.851451
C14: 2020 | D14: 2672.693014 | E14: 2779.734722 | F14: 3750.449495 | G14: 3914.638404 | H14: 6423.142509 | I14: 6694.373126
C15: 2021 | D15: 2697.656615 | E15: 2805.698119 | F15: 3786.559986 | G15: 3952.329756 | H15: 6484.216601 | I15: 6758.027875
C16: 2022 | D16: 2727.244687 | E16: 2836.471196 | F16: 3829.010087 | G16: 3996.638258 | H16: 6556.254773 | I16: 6833.109454
C17: 2023 | D17: 2747.582593 | E17: 2857.623638 | F17: 3861.355201 | G17: 4030.399391 | H17: 6608.937793 | I17: 6888.023029
C18: 2024 | D18: 2765.747136 | E18: 2876.515674 | F18: 3886.325942 | G18: 4056.463313 | H18: 6652.073078 | I18: 6932.978987
C19: 2025 | D19: 2781.27401 | E19: 2892.664401 | F19: 3907.102448 | G19: 4078.149382 | H19: 6688.376458 | I19: 6970.813783
C20: 2026 | D20: 2796.906224 | E20: 2908.922687 | F20: 3929.062406 | G20: 4101.070713 | H20: 6725.96863 | I20: 7009.993401
C21: 2027 | D21: 2810.310829 | E21: 2922.864149 | F21: 3947.893045 | G21: 4120.725729 | H21: 6758.203874 | I21: 7043.589878
C22: 2028 | D22: 2821.196192 | E22: 2934.185472 | F22: 3963.18468 | G22: 4136.686808 | H22: 6784.380872 | I22: 7070.872279
C23: 2029 | D23: 2832.250953 | E23: 2945.682977 | F23: 3978.714283 | G23: 4152.896274 | H23: 6810.965236 | I23: 7098.579251
C24: 2030 | D24: 2849.05557 | E24: 2963.160622 | F24: 4002.321221 | G24: 4177.536687 | H24: 6851.376791 | I24: 7140.697308
C25: 2031 | D25: 2860.443239 | E25: 2975.004368 | F25: 4018.31849 | G25: 4194.234292 | H25: 6878.76173 | I25: 7169.23866
C26: 2032 | D26: 2873.686511 | E26: 2988.778035 | F26: 4036.92249 | G26: 4213.652746 | H26: 6910.609001 | I26: 7202.430781
C27: 2033 | D27: 2886.209231 | E27: 3001.802291 | F27: 4054.514265 | G27: 4232.014662 | H27: 6940.723496 | I27: 7233.816953
C28: 2034 | D28: 2901.697345 | E28: 3017.910706 | F28: 4076.271793 | G28: 4254.724701 | H28: 6977.969138 | I28: 7272.635408
C29: 2035 | D29: 2933.176216 | E29: 3050.650311 | F29: 4120.492958 | G29: 4300.881801 | H29: 7053.669175 | I29: 7351.532112
C30: MWh/h
A33: Historiske værdier
C35: Østdanmark | H35: Vestdanmark
B36: År | C36: Dato | D36: Tid | E36: Årsforbrug | F36: Maks. effekt | G36: Benyttelsestid | H36: Dato | I36: Tid | J36: Årsforbrug | K36: Maks. effekt | L36: Benyttelsestid
E37: GWh | F37: MWh/h | G37: Timer | J37: GWh | K37: MWh/h | L37: Timer
B38: 2000 | C38: 24.01 | D38: 17-18 | E38: 14217 | F38: 2660 | G38: 5345 | H38: 24.01 | I38: 8-9 | J38: 20604 | K38: 3633 | L38: 5671
B39: 2001 | C39: 05.02 | D39: 17-18 | E39: 14557 | F39: 2660 | G39: 5473 | H39: 05.02 | I39: 10-11 | J39: 20615 | K39: 3685 | L39: 5595
B40: 2002 | C40: 03.01 | D40: 17-18 | E40: 14330 | F40: 2683 | G40: 5342 | H40: 10.12 | I40: 17-18 | J40: 20529 | K40: 3656 | L40: 5615
B41: 2003 | C41: 07.01 | D41: 17-18 | E41: 14172 | F41: 2665 | G41: 5318 | H41: 09.01 | I41: 17-18 | J41: 20648 | K41: 3745 | L41: 5513
B42: 2004 | C42: 06.01 | D42: 17-18 | E42: 14256 | F42: 2628 | G42: 5424 | H42: 27.01 | I42: 8-9 | J42: 20853 | K42: 3618 | L42: 5764
B43: 2005 | C43: 25.01 | D43: 17-18 | E43: 14446 | F43: 2619 | G43: 5516 | H43: 29.11 | I43: 17-18 | J43: 21008 | K43: 3698 | L43: 5682
B44: 2006 | C44: 24.01 | D44: 17-18 | E44: 14576 | F44: 2688 | G44: 5423 | H44: 04.01 | I44: 17-18 | J44: 21398 | K44: 3754 | L44: 5700
B45: 2007 | C45: 25.01 | D45: 17-18 | E45: 14516 | F45: 2669 | G45: 5438 | H45: 24.01 | I45: 17-18 | J45: 21596 | K45: 3767 | L45: 5733
B46: 2008 | C46: 03.01 | D46: 17-18 | E46: 14483 | F46: 2660 | G46: 5445 | H46: 03.01 | I46: 17-18 | J46: 21620 | K46: 3748 | L46: 5769
B47: 2009 | C47: 05.01 | D47: 17-18 | E47: 13871 | F47: 2614 | G47: 5306 | H47: 06.01 | I47: 17-18 | J47: 20319 | K47: 3677 | L47: 5525 | AO47: Ultimo år | AP47: 2008 | BC47: 2009 | BD47: 2010 | BE47: 2011 | BF47: 2012 | BG47: 2013 | BH47: 2014 | BI47: 2015 | BJ47: 2016 | BK47: 2017 | BL47: 2018 | BM47: 2019 | BN47: 2020 | BO47: 2021 | BP47: 2022 | BQ47: 2023 | BR47: 2024 | BS47: 2025
B48: 2010 | C48: 31.12 | D48: 17-18 | E48: 14398 | F48: 2615 | G48: =E48*1000/F48 -> 5505.927342 | H48: 01.12 | I48: 17-18 | J48: 21121 | K48: 3744 | L48: 5641
B49: 2011 | C49: 05.01 | D49: 17-18 | E49: =13870482.3999999/1000 -> 13870.4824 | F49: 2555 | G49: =E49*1000/F49 -> 5428.760235 | H49: 05.01 | I49: 17-18 | J49: =20699681.1000001/1000 -> 20699.6811 | K49: 3663 | L49: =J49*1000/K49 -> 5651.018591
B50: 2012 | C50: 06.02 | D50: 17-18 | E50: 13648 | F50: 2559 | G50: =E50*1000/F50 -> 5333.333333 | H50: 07.02 | I50: 8-9 | J50: 20438 | K50: 3676 | L50: =J50*1000/K50 -> 5559.847661 | AO50: Land- og kystnære | AP50: 580 | BC50: 584 | BD50: 595 | BE50: 600 | BF50: 600 | BG50: 600 | BH50: 600 | BI50: 605 | BJ50: 620 | BK50: 640 | BL50: 660 | BM50: 680 | BN50: 700 | BO50: 720 | BP50: 740 | BQ50: 760 | BR50: 780 | BS50: 800
B51: 2013 | AO51: møller
AO52: Havmøller | AP52: 166 | BC52: 166 | BD52: 366 | BE52: 366 | BF52: 366 | BG52: 366 | BH52: 366 | BI52: 666 | BJ52: 966 | BK52: 966 | BL52: 966 | BM52: 966 | BN52: 966 | BO52: 966 | BP52: 966 | BQ52: 966 | BR52: 966 | BS52: 966
AO53: Sum Øst | AP53: =+SUM(AP50:AP52) -> 746 | BC53: =+SUM(BC50:BC52) -> 750 | BD53: 961 | BE53: 966 | BF53: 966 | BG53: 966 | BH53: 966 | BI53: 1271 | BJ53: 1586 | BK53: 1606 | BL53: 1626 | BM53: 1646 | BN53: 1666 | BO53: 1686 | BP53: 1706 | BQ53: 1726 | BR53: 1746 | BS53: 1766
AO54: Land- og kystnære | AP54: 2260 | BC54: 2360 | BD54: 2360 | BE54: 2400 | BF54: 2400 | BG54: 2400 | BH54: 2400 | BI54: 2400 | BJ54: 2580 | BK54: 2560 | BL54: 2640 | BM54: 2720 | BN54: 2800 | BO54: 2880 | BP54: 2960 | BQ54: 3040 | BR54: 3120 | BS54: 3200
AO55: møller
AO56: Havmøller | AP56: 160 | BC56: 369 | BD56: 369 | BE56: 369 | BF56: 769 | BG56: 769 | BH56: 769 | BI56: 769 | BJ56: 769 | BK56: 769 | BL56: 769 | BM56: 969 | BN56: 1169 | BO56: 1369 | BP56: 1369 | BQ56: 1369 | BR56: 1569 | BS56: 1769
AO57: Sum Vest | AP57: =+SUM(AP54:AP56) -> 2420 | BC57: =+SUM(BC54:BC56) -> 2729 | BD57: 2729 | BE57: 2769 | BF57: 3169 | BG57: 3169 | BH57: 3169 | BI57: 3169 | BJ57: 3349 | BK57: 3329 | BL57: 3409 | BM57: 3689 | BN57: 3969 | BO57: 4249 | BP57: 4329 | BQ57: 4409 | BR57: 4689 | BS57: 4969
AO60: Sum DK | AP60: =+AP57+AP53 -> 3166 | BC60: =+BC57+BC53 -> 3479 | BD60: 3690 | BE60: 3735 | BF60: 4135 | BG60: 4135 | BH60: 4135 | BI60: 4440 | BJ60: 4935 | BK60: 4935 | BL60: 5035 | BM60: 5335 | BN60: 5635 | BO60: 5935 | BP60: 6035 | BQ60: 6135 | BR60: 6435 | BS60: 6735

Sheet Individ. VP & Elbiler
A1: Individuelle varmepumper og elbiler | E1: Indholdsfortegnelse
A3: Fremskrivning
B5: År | C5: 2013 | D5: 2014 | E5: 2015 | F5: 2016 | G5: 2017 | H5: 2018 | I5: 2019 | J5: 2020 | K5: 2021 | L5: 2022 | M5: 2023 | N5: 2024
B6: VP, individuel GWh | C6: 291.7545799 | D6: 326.1052594 | E6: 359.5162769 | F6: 393.748239 | G6: 425.0190648 | H6: 470.1860133 | I6: 512.7876663 | J6: 555.7739123 | K6: 593.2131724 | L6: 628.258443 | M6: 661.9333066 | N6: 695.9103689
B9: År | C9: 2025 | D9: 2026 | E9: 2027 | F9: 2028 | G9: 2029 | H9: 2030 | I9: 2031 | J9: 2032 | K9: 2033 | L9: 2034 | M9: 2035
B10: VP, individuel GWh | C10: 732.8225469 | D10: 774.6659562 | E10: 820.048149 | F10: 869.0998484 | G10: 932.9472441 | H10: 1006.00558 | I10: 1099.526232 | J10: 1211.79665 | K10: 1371.315943 | L10: 1577.449918 | M10: 1876.93675
B14: År | C14: 2013 | D14: 2014 | E14: 2015 | F14: 2016 | G14: 2017 | H14: 2018 | I14: 2019 | J14: 2020 | K14: 2021 | L14: 2022 | M14: 2023 | N14: 2024
B15: Elbiler, GWh | C15: 4.171286943 | D15: 9.226923834 | E15: 18.13898243 | F15: 31.80567354 | G15: 50.52508613 | H15: 74.59046327 | I15: 104.3025603 | J15: 139.9582022 | K15: 178.5851828 | L15: 220.1820721 | M15: 264.7469684 | N15: 312.2796115
B18: År | C18: 2025 | D18: 2026 | E18: 2027 | F18: 2028 | G18: 2029 | H18: 2030 | I18: 2031 | J18: 2032 | K18: 2033 | L18: 2034 | M18: 2035
B19: Elbiler, GWh | C19: 362.779718 | D19: 416.2470289 | E19: 472.6820218 | F19: 532.0853681 | G19: 594.4574138 | H19: 659.7986322 | I19: 743.6953373 | J19: 838.2599291 | K19: 944.848883 | L19: 1064.991157 | M19: 1200.410124
A29: Transformeret tabel
B31: År | C31: VP, individuel | D31: Elbiler
C32: GWh | D32: GWh
B33: 2013 | C33: 291.7545799 | D33: 4.171286943
B34: 2014 | C34: 326.1052594 | D34: 9.226923834
B35: 2015 | C35: 359.5162769 | D35: 18.13898243
B36: 2016 | C36: 393.748239 | D36: 31.80567354
B37: 2017 | C37: 425.0190648 | D37: 50.52508613
B38: 2018 | C38: 470.1860133 | D38: 74.59046327
B39: 2019 | C39: 512.7876663 | D39: 104.3025603
B40: 2020 | C40: 555.7739123 | D40: 139.9582022
B41: 2021 | C41: 593.2131724 | D41: 178.5851828
B42: 2022 | C42: 628.258443 | D42: 220.1820721
B43: 2023 | C43: 661.9333066 | D43: 264.7469684
B44: 2024 | C44: 695.9103689 | D44: 312.2796115
B45: 2025 | C45: 732.8225469 | D45: 362.779718
B46: 2026 | C46: 774.6659562 | D46: 416.2470289
B47: 2027 | C47: 820.048149 | D47: 472.6820218
B48: 2028 | C48: 869.0998484 | D48: 532.0853681
B49: 2029 | C49: 932.9472441 | D49: 594.4574138
B50: 2030 | C50: 1006.00558 | D50: 659.7986322
B51: 2031 | C51: 1099.526232 | D51: 743.6953373
B52: 2032 | C52: 1211.79665 | D52: 838.2599291
B53: 2033 | C53: 1371.315943 | D53: 944.848883
B54: 2034 | C54: 1577.449918 | D54: 1064.991157
B55: 2035 | C55: 1876.93675 | D55: 1200.410124
A66: Forudsætninger
A68: Gennemsnitlig MWh per elbil, årligt
A69: 3 | B69: MWh
B72: Manglende gennembrud
C73: 2012 | D73: 2013 | E73: 2014 | F73: 2015 | G73: 2016 | H73: 2017 | I73: 2018 | J73: 2019 | K73: 2020 | L73: 2021 | M73: 2022 | N73: 2023 | O73: 2024 | P73: 2025 | Q73: 2026 | R73: 2027 | S73: 2028 | T73: 2029 | U73: 2030 | V73: 2031 | W73: 2032 | X73: 2033 | Y73: 2034 | Z73: 2035
B74: Biler | C74: 454.5554145 | D74: 1109.666911 | E74: 2072.645366 | F74: 3557.988466 | G74: 5538.668337 | H74: 8014.781113 | I74: 10985.81533 | J74: 14452.22664 | K74: 18413.96464 | L74: 23366.14164 | M74: 29308.55439 | N74: 36240.8716 | O74: 44162.97877 | P74: 53074.76227 | Q74: 63471.18385 | R74: 75352.23498 | S74: 88717.9879 | T74: 103370.4685 | U74: 119210.7639 | V74: =+U74*(1+AVERAGE(Q76:U76)) -> 140164.2907 | W74: =+V74*(1+AVERAGE(Q76:U76)) -> 164800.7928 | X74: =+W74*(1+AVERAGE(Q76:U76)) -> 193767.6221 | Y74: =+X74*(1+AVERAGE(Q76:U76)) -> 227825.9147 | Z74: =+Y74*(1+AVERAGE(Q76:U76)) -> 267870.5909
B75: GWh | C75: =+C74*$A$69/1000 -> 1.363666243 | D75: 3.329000733 | E75: 6.217936099 | F75: 10.6739654 | G75: 16.61600501 | H75: 24.04434334 | I75: =+I74*$A$69/1000 -> 32.95744599 | J75: 43.35667993 | K75: 55.24189393 | L75: 70.09842492 | M75: 87.92566317 | N75: 108.7226148 | O75: 132.4889363 | P75: 159.2242868 | Q75: 190.4135515 | R75: 226.0567049 | S75: 266.1539637 | T75: 310.1114054 | U75: 357.6322916 | V75: 420.4928722 | W75: 494.4023785 | X75: 581.3028663 | Y75: 683.4777442 | Z75: 803.6117726
Q76: =+Q74/P74-1 -> 0.195882584 | R76: =+R74/Q74-1 -> 0.187188113 | S76: =+S74/R74-1 -> 0.1773769939 | T76: =+T74/S74-1 -> 0.1651579449 | U76: =+U74/T74-1 -> 0.1532381116
B77: Moderat udvikling
C78: 2012 | D78: 2013 | E78: 2014 | F78: 2015 | G78: 2016 | H78: 2017 | I78: 2018 | J78: 2019 | K78: 2020 | L78: 2021 | M78: 2022 | N78: 2023 | O78: 2024 | P78: 2025 | Q78: 2026 | R78: 2027 | S78: 2028 | T78: 2029 | U78: 2030 | V78: 2031 | W78: 2032 | X78: 2033 | Y78: 2034 | Z78: 2035
B79: Biler | C79: 454.5554145 | D79: 1390.428981 | E79: 3075.641278 | F79: 6046.327477 | G79: 10601.89118 | H79: 16841.69538 | I79: 24863.48776 | J79: 34767.52008 | K79: 46652.73408 | L79: 59528.39428 | M79: 73394.02403 | N79: 88248.98948 | O79: 104093.2038 | P79: 120926.5727 | Q79: 138749.0096 | R79: 157560.6739 | S79: 177361.7894 | T79: 198152.4713 | U79: 219932.8774 | V79: =+U79*(1+AVERAGE(Q81:U81)) -> 247898.4458 | W79: =+V79*(1+AVERAGE(Q81:U81)) -> 279419.9764 | X79: =+W79*(1+AVERAGE(Q81:U81)) -> 314949.6277 | Y79: =+X79*(1+AVERAGE(Q81:U81)) -> 354997.0523 | Z79: =+Y79*(1+AVERAGE(Q81:U81)) -> 400136.7079
B80: GWh | C80: =+C79*$A$69/1000 -> 1.363666243 | D80: 4.171286943 | E80: 9.226923834 | F80: 18.13898243 | G80: 31.80567354 | H80: 50.52508613 | I80: 74.59046327 | J80: 104.3025603 | K80: 139.9582022 | L80: 178.5851828 | M80: 220.1820721 | N80: 264.7469684 | O80: 312.2796115 | P80: 362.779718 | Q80: 416.2470289 | R80: 472.6820218 | S80: 532.0853681 | T80: 594.4574138 | U80: 659.7986322 | V80: 743.6953373 | W80: 838.2599291 | X80: 944.848883 | Y80: 1064.991157 | Z80: 1200.410124
Q81: =+Q79/P79-1 -> 0.1473823048 | R81: =+R79/Q79-1 -> 0.1355805302 | S81: =+S79/R79-1 -> 0.1256729547 | T81: =+T79/S79-1 -> 0.1172218771 | U81: =+U79/T79-1 -> 0.1099174086
B83: Elbiler til alle
C84: 2012 | D84: 2013 | E84: 2014 | F84: 2015 | G84: 2016 | H84: 2017 | I84: 2018 | J84: 2019 | K84: 2020 | L84: 2021 | M84: 2022 | N84: 2023 | O84: 2024 | P84: 2025 | Q84: 2026 | R84: 2027 | S84: 2028 | T84: 2029 | U84: 2030 | V84: 2031 | W84: 2032 | X84: 2033 | Y84: 2034 | Z84: 2035
B85: Biler | C85: 454.5554145 | D85: 1577.603694 | E85: 3888.751987 | F85: 7849.66692 | G85: 14782.04647 | H85: 24934.10885 | I85: 38798.93519 | J85: 56626.19338 | K85: 78415.75237 | L85: 103176.6374 | M85: 130907.8969 | N85: 160617.8278 | O85: 192306.2564 | P85: 225972.9941 | Q85: 261122.8004 | R85: 297756.0414 | S85: 335873.1886 | T85: 375276.4809 | U85: 415867.2379 | V85: =+U85*(1+AVERAGE(Q87:U87)) -> 469874.4924 | W85: =+V85*(1+AVERAGE(Q87:U87)) -> 530895.4843 | X85: =+W85*(1+AVERAGE(Q87:U87)) -> 599841.0635 | Y85: =+X85*(1+AVERAGE(Q87:U87)) -> 677740.369 | Z85: =+Y85*(1+AVERAGE(Q87:U87)) -> 765756.1906
B86: GWh | C86: =+C85*$A$69/1000 -> 1.363666243 | D86: 4.732811083 | E86: 11.66625596 | F86: 23.54900076 | G86: 44.3461394 | H86: 74.80232655 | I86: 116.3968056 | J86: 169.8785801 | K86: 235.2472571 | L86: 309.5299121 | M86: 392.7236906 | N86: 481.8534833 | O86: 576.9187693 | P86: 677.9189823 | Q86: 783.3684012 | R86: 893.2681242 | S86: 1007.619566 | T86: 1125.829443 | U86: 1247.601714 | V86: 1409.623477 | W86: 1592.686453 | X86: 1799.52319 | Y86: 2033.221107 | Z86: 2297.268572
Q87: =+Q85/P85-1 -> 0.1555487036 | R87: =+R85/Q85-1 -> 0.1402912382 | S87: =+S85/R85-1 -> 0.1280146896 | T87: =+T85/S85-1 -> 0.1173159801 | U87: =+U85/T85-1 -> 0.1081622723

Sheet Store varmepumper
A1: Store varmepumper | C1: Indholdsfortegnelse
A3: Fremskrivning
C5: Elforbrug | D5: benyttelsestid | E5: central | F5: 4500
E6: decentral | F6: 4500
C7: År | D7: Store varmepumper, decentrale områder | F7: Store varmepumper, Centrale områder | H7: Store varmepumper | J7: Store varmepumper, decentrale område | K7: Store varmepumper, centrale område
D8: Østdanmark, Mw el | E8: Vestdanmark, MW el | F8: Østdanmark, MW el | G8: Vestdanmark, MW el | H8: Østdanmark GWh* | I8: Vestdanmark GWh* | J8: MW el | K8: MW el
C9: 2013 | D9: 0.5 | E9: 3.5 | F9: 0 | G9: 0 | H9: 2.25 | I9: 15.75 | J9: 4 | K9: 0
C10: 2014 | D10: 0.5 | E10: 4.217460317 | F10: 0 | G10: 0 | H10: 2.25 | I10: 18.97857143 | J10: 4.717460317 | K10: 0
C11: 2015 | D11: 1.557142857 | E11: 5.36031746 | F11: 0 | G11: 0 | H11: 7.007142857 | I11: 24.12142857 | J11: 6.917460317 | K11: 0
C12: 2016 | D12: 2.128571429 | E12: 7.074603175 | F12: 0 | G12: 0 | H12: 9.578571429 | I12: 31.83571429 | J12: 9.203174603 | K12: 0
C13: 2017 | D13: 9.096428571 | E13: 27.80595238 | F13: 0 | G13: 0 | H13: 40.93392857 | I13: 125.1267857 | J13: 36.90238095 | K13: 0
C14: 2018 | D14: 16.06428571 | E14: 48.53730159 | F14: 0 | G14: 0 | H14: 72.28928571 | I14: 218.4178571 | J14: 64.6015873 | K14: 0
C15: 2019 | D15: 23.03214286 | E15: 69.26865079 | F15: 0 | G15: 0 | H15: 103.6446429 | I15: 311.7089286 | J15: 92.30079365 | K15: 0
C16: 2020 | D16: 30 | E16: 90 | F16: 0 | G16: 0 | H16: 135 | I16: 405 | J16: 120 | K16: 0
C17: 2021 | D17: 34.66666667 | E17: 97.33333333 | F17: 0 | G17: 0 | H17: 156 | I17: 438 | J17: 132 | K17: 0
C18: 2022 | D18: 39.33333333 | E18: 104.6666667 | F18: 0 | G18: 0 | H18: 177 | I18: 471 | J18: 144 | K18: 0
C19: 2023 | D19: 44 | E19: 112 | F19: 0 | G19: 10 | H19: 198 | I19: 549 | J19: 156 | K19: 10
C20: 2024 | D20: 48.66666667 | E20: 119.3333333 | F20: 5 | G20: 30 | H20: 241.5 | I20: 672 | J20: 168 | K20: 35
C21: 2025 | D21: 53.33333333 | E21: 126.6666667 | F21: 10 | G21: 50 | H21: 285 | I21: 795 | J21: 180 | K21: 60
C22: 2026 | D22: 58 | E22: 134 | F22: 20 | G22: 70 | H22: 351 | I22: 918 | J22: 192 | K22: 90
C23: 2027 | D23: 62.66666667 | E23: 141.3333333 | F23: 35 | G23: 85 | H23: 439.5 | I23: 1018.5 | J23: 204 | K23: 120
C24: 2028 | D24: 67.33333333 | E24: 148.6666667 | F24: 50 | G24: 85 | H24: 528 | I24: 1051.5 | J24: 216 | K24: 135
C25: 2029 | D25: 72 | E25: 156 | F25: 65 | G25: 85 | H25: 616.5 | I25: 1084.5 | J25: 228 | K25: 150
C26: 2030 | D26: 76.66666667 | E26: 163.3333333 | F26: 65 | G26: 85 | H26: 637.5 | I26: 1117.5 | J26: 240 | K26: 150
C27: 2031 | D27: 81.33333333 | E27: 170.6666667 | F27: 65 | G27: 85 | H27: 658.5 | I27: 1150.5 | J27: 252 | K27: 150
C28: 2032 | D28: 86 | E28: 178 | F28: 65 | G28: 85 | H28: 679.5 | I28: 1183.5 | J28: 264 | K28: 150
C29: 2033 | D29: 90.66666667 | E29: 185.3333333 | F29: 65 | G29: 85 | H29: 700.5 | I29: 1216.5 | J29: 276 | K29: 150
C30: 2034 | D30: 95.33333333 | E30: 192.6666667 | F30: 65 | G30: 85 | H30: 721.5 | I30: 1249.5 | J30: 288 | K30: 150
C31: 2035 | D31: 100 | E31: 200 | F31: 65 | G31: 85 | H31: 742.5 | I31: 1282.5 | J31: 300 | K31: 150
C32: * Estimeret ud fra SIVAEL kørsler
A38: Decentrale eldrevne varmepumper
A39: Ejer | B39: Idriftsættelsesår | C39: Systemløsning | D39: Varmekilde | E39: Varmeydelse | F39: COP VP | G39: Elforbrug, MWh/h | H39: Landsdel
A40: Eksisterende varmepumper
A41: Vejen Varmeværk | B41: 2003 | E41: 0.7 | F41: 4.2 | G41: =E41/F41 -> 0.1666666667 | H41: Vestdanmark
A42: Frederikshavn forsyning | B42: 2009 | E42: 1 | F42: 3 | G42: =E42/F42 -> 0.3333333333 | H42: Vestdanmark
A43: Bjerringbro Varmeværk | B43: 2010 | E43: 0.8 | F43: 5.1 | G43: =E43/F43 -> 0.1568627451 | H43: Vestdanmark
A44: Brande Varmeværk | B44: 2010 | E44: 0.65 | F44: 4.2 | G44: 0.1547619048 | H44: Vestdanmark
A45: Bjerringbro Varmeværk | B45: 2011 | E45: 0.5 | F45: 5.2 | G45: 0.09615384615 | H45: Vestdanmark
A46: Hanstholm Varmeværk | B46: 2011 | E46: 0.3 | F46: 5.8 | G46: 0.05172413793 | H46: Vestdanmark
A47: Vinderup | B47: 2011 | E47: 0.67 | F47: 5.2 | G47: 0.1288461538 | H47: Vestdanmark
A48: Bjerringbro Varmeværk | B48: 2012 | E48: 3.7 | F48: 4.8 | G48: 0.7708333333 | H48: Vestdanmark
A49: Brædstrup Fjernvarme | B49: 2012 | E49: 1.2 | F49: 3.2 | G49: 0.375 | H49: Vestdanmark
A50: Hundested | B50: 2012 | E50: 0.8 | F50: 4.8 | G50: 0.1666666667 | H50: Østdanmark
A51: Lading Fajstrup | B51: 2012 | E51: 0.13 | F51: 4.3 | G51: 0.03023255814 | H51: Vestdanmark
A52: Marstal | B52: 2012 | E52: 1.5 | F52: 3.1 | G52: 0.4838709677 | H52: Vestdanmark
A53: Skjern Papirfabrik | B53: 2012 | E53: 5.3 | F53: 6.7 | G53: 0.7910447761 | H53: Vestdanmark
A54: Vejen Varmeværk | B54: 2013 | E54: 1 | F54: 4.1 | G54: 0.243902439 | H54: Vestdanmark
A55: SUM | E55: =SUM(E41:E54) -> 18.25 | G55: =SUM(G41:G54) -> 3.949899529
A56: Projekterede varmepumper, forventes installeret i 2014-2017
A57: Ans | E57: 1.5 | F57: 3.5 | G57: =E57/F57 -> 0.4285714286 | H57: Vestdanmark
A58: Broager | E58: 4 | F58: 3.5 | G58: 1.142857143 | H58: Vestdanmark
A59: Horsens | E59: 6 | F59: 3.5 | G59: 1.714285714 | H59: Vestdanmark
A60: Løgumkloster | E60: 1.3 | F60: 4.5 | G60: 0.2888888889 | H60: Vestdanmark
A61: Præstø | E61: 3.7 | F61: 3.5 | G61: 1.057142857 | H61: Østdanmark
A62: Rye Kraftvarmeværk | E62: 2 | F62: 3.5 | G62: 0.5714285714 | H62: Østdanmark
A63: SUM | E63: =SUM(E49:E62) -> 46.68 | G63: =SUM(G49:G62) -> 11.24379154

Sheet Elkedler
A1: Elkedler/elpatroner | G1: Indholdsfortegnelse
B3: Primo året
B4: År | C4: 2010* | D4: 2011* | E4: 2012* | F4: 2013* | G4: 2014* | H4: 2015 | I4: 2016 | J4: 2017 | K4: 2018 | L4: 2019 | M4: 2020-2035
B5: MW. installeret | C5: 85 | D5: 160 | E5: 223 | F5: 354 | G5: =F11+F13 -> 446.9 | H5: =G5+H11 -> 526.9 | I5: 527 | J5: 527 | K5: 527 | L5: 527 | M5: 550
B6: * indikerer historiske værdier
F9: Primo 2014 | H9: Kommer i 2014
B10: Vest
F11: 312.4 | H11: 80
B12: Øst
F13: 134.5
H22: År | I22: Elkedler
I23: GWh* | J23: MW
H24: 2013 | I24: 177 | J24: 354
H25: 2014 | I25: 223.45 | J25: 446.9
H26: 2015 | I26: 263.45 | J26: 526.9
H27: 2016 | I27: 263.5 | J27: 527
H28: 2017 | I28: 263.5 | J28: 527
H29: 2018 | I29: 263.5 | J29: 527
H30: 2019 | I30: 263.5 | J30: 527
H31: 2020 | I31: 300 | J31: 550
H32: 2021 | I32: 310 | J32: 550
H33: 2022 | I33: 320 | J33: 550
H34: 2023 | I34: 330 | J34: 550
H35: 2024 | I35: 340 | J35: 550
H36: 2025 | I36: 350 | J36: 550
H37: 2026 | I37: 353.3333333 | J37: 550
H38: 2027 | I38: 356.6666667 | J38: 550
H39: 2028 | I39: 360 | J39: 550
H40: 2029 | I40: 363.3333333 | J40: 550
H41: 2030 | I41: 366.6666667 | J41: 550
H42: 2031 | I42: 366.6666667 | J42: 550
H43: 2032 | I43: 366.6666667 | J43: 550
H44: 2033 | I44: 366.6666667 | J44: 550
H45: 2034 | I45: 366.6666667 | J45: 550
H46: 2035 | I46: 366.6666667 | J46: 550
H47: * Estimeret ud fra SIVAEL kørsler

Sheet Vindkapacitet
A1: Vindkapacitet på land og hav | E1: Indholdsfortegnelse
B5: Primo år | C5: 2014 | D5: 2015 | E5: 2016 | F5: 2017 | G5: 2018 | H5: 2019 | I5: 2020 | J5: 2021 | K5: 2022 | L5: 2023 | M5: 2024
B6: Havmøller
B7: Rødsand 1 | C7: 165.6 | D7: 165.6 | E7: 165.6 | F7: 165.6 | G7: 165.6 | H7: 165.6 | I7: 165.6 | J7: 165.6 | K7: 165.6 | L7: 165.6 | M7: 165.6
B8: Rødsand 2 | C8: 207 | D8: 207 | E8: 207 | F8: 207 | G8: 207 | H8: 207 | I8: 207 | J8: 207 | K8: 207 | L8: 207 | M8: 207
B9: Horns Rev 1 | C9: 160 | D9: 160 | E9: 160 | F9: 160 | G9: 160 | H9: 160 | I9: 160 | J9: 160 | K9: 160 | L9: 160 | M9: 160
B10: Horns Rev 2 | C10: 209.3 | D10: 209.3 | E10: 209.3 | F10: 209.3 | G10: 209.3 | H10: 209.3 | I10: 209.3 | J10: 209.3 | K10: 209.3 | L10: 209.3 | M10: 209.3
B11: Horns Rev 3, 4 og 5 | C11: 0 | D11: 0 | E11: 0 | F11: 0 | G11: 200 | H11: 400 | I11: 400 | J11: 400 | K11: 400 | L11: 400 | M11: 600
B12: Anholt | C12: 399.6 | D12: 399.6 | E12: 399.6 | F12: 399.6 | G12: 399.6 | H12: 399.6 | I12: 399.6 | J12: 399.6 | K12: 399.6 | L12: 399.6 | M12: 399.6
B13: Kriegers Flak | C13: 0 | D13: 0 | E13: 0 | F13: 0 | G13: 0 | H13: 0 | I13: 200 | J13: 400 | K13: 600 | L13: 600 | M13: 600
B14: Store Middelgrund | C14: 0 | D14: 0 | E14: 0 | F14: 0 | G14: 0 | H14: 0 | I14: 0 | J14: 0 | K14: 0 | L14: 0 | M14: 0
B15: Ringkøbing | C15: 0 | D15: 0 | E15: 0 | F15: 0 | G15: 0 | H15: 0 | I15: 0 | J15: 0 | K15: 0 | L15: 0 | M15: 0
B16: Jammerbugt | C16: 0 | D16: 0 | E16: 0 | F16: 0 | G16: 0 | H16: 0 | I16: 0 | J16: 0 | K16: 0 | L16: 0 | M16: 0
B17: Kystnære møller
B18: Østdanmark | C18: 55.75 | D18: 55.75 | E18: 55.75 | F18: 55.75 | G18: 55.75 | H18: 105.75 | I18: 255.75 | J18: 255.75 | K18: 255.75 | L18: 255.75 | M18: 255.75
B19: Vestdanmark | C19: 73.8 | D19: 73.8 | E19: 73.8 | F19: 73.8 | G19: 73.8 | H19: 123.8 | I19: 273.8 | J19: 273.8 | K19: 273.8 | L19: 273.8 | M19: 273.8
B20: Landmøller
B21: Østdanmark | C21: 583.3 | D21: 605.6289 | E21: 618.7078 | F21: 623.7078 | G21: 628.7078 | H21: 633.7078 | I21: 638.7078 | J21: 643.7078 | K21: 648.7078 | L21: 653.7078 | M21: 658.7078
B22: Før 2008 | C22: 495.3 | D22: 468.6289 | E22: 448.7078 | F22: 411.3154833 | G22: 373.9231667 | H22: 336.53085 | I22: 299.1385333 | J22: 261.7462167 | K22: 224.3539 | L22: 186.9615833 | M22: 149.5692667
B23: Mellem 2008 - 2014 | C23: 88 | D23: 88 | E23: 88 | F23: 88 | G23: 88 | H23: 88 | I23: 88 | J23: 88 | K23: 88 | L23: 88 | M23: 88
B24: Mellem 2014-2020 | C24: 0 | D24: 49 | E24: 82 | F24: 124.3923167 | G24: 166.7846333 | H24: 209.17695 | I24: 251.5692667 | J24: 251.5692667 | K24: 251.5692667 | L24: 251.5692667 | M24: 251.5692667
B25: Fra 2020 og frem | C25: 0 | D25: 0 | E25: 0 | F25: 0 | G25: 0 | H25: 0 | I25: 0 | J25: 42.39231667 | K25: 84.78463333 | L25: 127.17695 | M25: 169.5692667
B26: Vestdanmark | C26: 2945.69 | D26: 3039.7159 | E26: 3054.3768 | F26: 3074.3768 | G26: 3094.3768 | H26: 3114.3768 | I26: 3134.3768 | J26: 3154.3768 | K26: 3174.3768 | L26: 3194.3768 | M26: 3214.3768
B27: Før 2008 | C27: 2006.69 | D27: 1955.7159 | E27: 1873.3768 | F27: 1717.262067 | G27: 1561.147333 | H27: 1405.0326 | I27: 1248.917867 | J27: 1092.803133 | K27: 936.6884 | L27: 780.5736667 | M27: 624.4589333
B28: Mellem 2008 - 2014 | C28: 939 | D28: 939 | E28: 939 | F28: 939 | G28: 939 | H28: 939 | I28: 939 | J28: 939 | K28: 939 | L28: 939 | M28: 939
B29: Mellem 2014-2020 | C29: 0 | D29: 145 | E29: 242 | F29: 418.1147333 | G29: 594.2294667 | H29: 770.3442 | I29: 946.4589333 | J29: 946.4589333 | K29: 946.4589333 | L29: 946.4589333 | M29: 946.4589333
B30: Fra 2020 og frem | E30: 0 | F30: 0 | G30: 0 | H30: 0 | I30: 0 | J30: 176.1147333 | K30: 352.2294667 | L30: 528.3442 | M30: 704.4589333
B31: Sum MW | C31: 4800.04 | D31: 4916.3948 | E31: 4944.1346 | F31: 4969.1346 | G31: 5194.1346 | H31: 5519.1346 | I31: 6044.1346 | J31: 6269.1346 | K31: 6494.1346 | L31: 6519.1346 | M31: 6744.1346
B32: Sum GWh | C32: 12908.20949 | D32: 13357.11632 | E32: 13567.98019 | F32: 13865.35758 | G32: 15062.73496 | H32: 16685.11235 | I32: 19116.23974 | J32: 20365.13024 | K32: 21546.02075 | L32: 22080.37126 | M32: 23518.63118
B33: % af klassisk forbrug | C33: 0.3794498912 | D33: 0.3916318628 | E33: 0.3962934974 | F33: 0.4027171114 | G33: 0.4349738772 | H33: 0.4788778954 | I33: 0.5456380327 | J33: 0.5765292043 | K33: 0.6039475293 | L33: 0.6147019037 | M33: 0.6512867146
B34: % af samlet forbrug | C34: 0.3726735629 | D34: 0.3835695016 | E34: 0.3874774475 | F34: 0.3917338255 | G34: 0.4207323013 | H34: 0.4606040395 | I34: 0.5212648283 | J34: 0.5487605665 | K34: 0.5728386902 | L34: 0.5801823022 | M34: 0.6105010787
B36: Primo år | C36: 2025 | D36: 2026 | E36: 2027 | F36: 2028 | G36: 2029 | H36: 2030 | I36: 2031 | J36: 2032 | K36: 2033 | L36: 2034 | M36: 2035 | N36: 2036
B37: Havmøller
B38: Rødsand 1 | C38: 165.6 | D38: 165.6 | E38: 165.6 | F38: 165.6 | G38: 165.6 | H38: 165.6 | I38: 165.6 | J38: 165.6 | K38: 165.6 | L38: 165.6 | M38: 165.6 | N38: 165.6
B39: Rødsand 2 | C39: 207 | D39: 207 | E39: 207 | F39: 207 | G39: 207 | H39: 207 | I39: 207 | J39: 207 | K39: 207 | L39: 207 | M39: 207 | N39: 207
B40: Horns Rev 1 | C40: 160 | D40: 160 | E40: 160 | F40: 160 | G40: 160 | H40: 160 | I40: 160 | J40: 160 | K40: 160 | L40: 160 | M40: 160 | N40: 160
B41: Horns Rev 2 | C41: 209.3 | D41: 209.3 | E41: 209.3 | F41: 209.3 | G41: 209.3 | H41: 209.3 | I41: 209.3 | J41: 209.3 | K41: 209.3 | L41: 209.3 | M41: 209.3 | N41: 209.3
B42: Horns Rev 3, 4 og 5 | C42: 800 | D42: 800 | E42: 800 | F42: 800 | G42: 800 | H42: 800 | I42: 800 | J42: 800 | K42: 800 | L42: 800 | M42: 1000 | N42: 1000
B43: Anholt | C43: 399.6 | D43: 399.6 | E43: 399.6 | F43: 399.6 | G43: 399.6 | H43: 399.6 | I43: 399.6 | J43: 399.6 | K43: 399.6 | L43: 399.6 | M43: 399.6 | N43: 399.6
B44: Kriegers Flak | C44: 600 | D44: 600 | E44: 600 | F44: 600 | G44: 600 | H44: 600 | I44: 600 | J44: 600 | K44: 600 | L44: 600 | M44: 600 | N44: 600
B45: Store Middelgrund | C45: 0 | D45: 0 | E45: 0 | F45: 0 | G45: 0 | H45: 0 | I45: 0 | J45: 0 | K45: 0 | L45: 0 | M45: 0 | N45: 0
B46: Ringkøbing | C46: 0 | D46: 0 | E46: 0 | F46: 0 | G46: 0 | H46: 200 | I46: 400 | J46: 400 | K46: 400 | L46: 400 | M46: 400 | N46: 400
B47: Jammerbugt | C47: 0 | D47: 200 | E47: 400 | F47: 400 | G47: 400 | H47: 400 | I47: 400 | J47: 400 | K47: 400 | L47: 400 | M47: 400 | N47: 400
B48: Kystnære møller
B49: Østdanmark | C49: 255.75 | D49: 255.75 | E49: 255.75 | F49: 255.75 | G49: 255.75 | H49: 255.75 | I49: 255.75 | J49: 255.75 | K49: 255.75 | L49: 255.75 | M49: 255.75 | N49: 255.75
B50: Vestdanmark | C50: 273.8 | D50: 273.8 | E50: 273.8 | F50: 273.8 | G50: 273.8 | H50: 273.8 | I50: 273.8 | J50: 273.8 | K50: 273.8 | L50: 273.8 | M50: 273.8 | N50: 273.8
B51: Landmøller
B52: Østdanmark | C52: 663.7078 | D52: 668.7078 | E52: 673.7078 | F52: 678.7078 | G52: 683.7078 | H52: 688.7078 | I52: 688.7078 | J52: 688.7078 | K52: 688.7078 | L52: 688.7078 | M52: 688.7078 | N52: 688.7078
B53: Før 2008 | C53: 112.17695 | D53: 74.78463333 | E53: 37.39231667 | F53: 0 | G53: 0 | H53: 0 | I53: 0 | J53: 0 | K53: 0 | L53: 0 | M53: 0 | N53: 0
B54: Mellem 2008 - 2014 | C54: 88 | D54: 88 | E54: 88 | F54: 88 | G54: 73.33333333 | H54: 58.66666667 | I54: 44 | J54: 29.33333333 | K54: 14.66666667 | L54: 0 | M54: 0 | N54: 0
B55: Mellem 2014-2020 | C55: 251.5692667 | D55: 251.5692667 | E55: 251.5692667 | F55: 251.5692667 | G55: 251.5692667 | H55: 251.5692667 | I55: 251.5692667 | J55: 251.5692667 | K55: 251.5692667 | L55: 251.5692667 | M55: 202.5692667 | N55: 169.5692667
B56: Fra 2020 og frem | C56: 211.9615833 | D56: 254.3539 | E56: 296.7462167 | F56: 339.1385333 | G56: 358.8052 | H56: 378.4718667 | I56: 393.1385333 | J56: 407.8052 | K56: 422.4718667 | L56: 437.1385333 | M56: 486.1385333 | N56: 519.1385333
B57: Vestdanmark | C57: 3234.3768 | D57: 3254.3768 | E57: 3274.3768 | F57: 3294.3768 | G57: 3314.3768 | H57: 3334.3768 | I57: 3334.3768 | J57: 3334.3768 | K57: 3334.3768 | L57: 3334.3768 | M57: 3334.3768 | N57: 3334.3768
B58: Før 2008 | C58: 468.3442 | D58: 312.2294667 | E58: 156.1147333 | F58: 0 | G58: 0 | H58: 0 | I58: 0 | J58: 0 | K58: 0 | L58: 0 | M58: 0 | N58: 0
B59: Mellem 2008 - 2014 | C59: 939 | D59: 939 | E59: 939 | F59: 939 | G59: 782.5 | H59: 626 | I59: 469.5 | J59: 313 | K59: 156.5 | L59: 0 | M59: 0 | N59: 0
B60: Mellem 2014-2020 | C60: 946.4589333 | D60: 946.4589333 | E60: 946.4589333 | F60: 946.4589333 | G60: 946.4589333 | H60: 946.4589333 | I60: 946.4589333 | J60: 946.4589333 | K60: 946.4589333 | L60: 946.4589333 | M60: 801.4589333 | N60: 704.4589333
B61: Fra 2020 og frem | C61: 880.5736667 | D61: 1056.6884 | E61: 1232.803133 | F61: 1408.917867 | G61: 1585.417867 | H61: 1761.917867 | I61: 1918.417867 | J61: 2074.917867 | K61: 2231.417867 | L61: 2387.917867 | M61: 2532.917867 | N61: 2629.917867
B62: Sum MW | C62: 6969.1346 | D62: 7194.1346 | E62: 7419.1346 | F62: 7444.1346 | G62: 7469.1346 | H62: 7694.1346 | I62: 7894.1346 | J62: 7894.1346 | K62: 7894.1346 | L62: 7894.1346 | M62: 8094.1346 | N62: 8094.1346
B63: Sum GWh | C63: 24789.52169 | D63: 25995.8122 | E63: 27202.10271 | F63: 27532.99321 | G63: 27680.63333 | H63: 28714.55844 | I63: 29602.34063 | J63: 29671.06282 | K63: 29737.44501 | L63: 29883.7472 | M63: 30853.39472 | N63: 30873.26007
B64: % af klassisk forbrug | C64: 0.6836660418 | D64: 0.7139828227 | E64: 0.7447499004 | F64: 0.7522185616 | G64: 0.754954131 | H64: 0.7804052893 | I64: 0.8038777443 | J64: 0.8050452173 | K64: 0.8075305238 | L64: 0.8124947504 | M64: 0.8373779303
B65: % af samlet forbrug | C65: 0.6363839149 | D65: 0.6596193426 | E65: 0.6827951827 | F65: 0.6854997938 | G65: 0.6835568883 | H65: 0.7032237906 | I65: 0.7200861554 | J65: 0.7163558713 | K65: 0.7126250805 | L65: 0.709998658 | M65: 0.7229679167

Sheet Solceller
A1: Solceller | B1: Primo år | D1: Indholdsfortegnelse
A3: Fremskrivning
C5: 2013 | D5: 2014 | E5: 2015 | F5: 2016 | G5: 2017 | H5: 2018 | I5: 2019 | J5: 2020 | K5: 2021 | L5: 2022 | M5: 2023 | N5: 2024
B6: Kapacitet, MW | C6: 331 | D6: 560 | E6: 670 | F6: 720 | G6: 750 | H6: 780 | I6: 810 | J6: 840 | K6: 900 | L6: 960 | M6: 1020 | N6: 1080
B7: Produktion, GWh | C7: 281.35 | D7: 476 | E7: 569.5 | F7: 612 | G7: 637.5 | H7: 663 | I7: 688.5 | J7: 714 | K7: 765 | L7: 816 | M7: 867 | N7: 918
C9: 2025 | D9: 2026 | E9: 2027 | F9: 2028 | G9: 2029 | H9: 2030 | I9: 2031 | J9: 2032 | K9: 2033 | L9: 2034 | M9: 2035 | N9: 2036
B10: Kapacitet, MW | C10: 1140 | D10: 1200 | E10: 1260 | F10: 1320 | G10: 1380 | H10: 1440 | I10: 1500 | J10: 1560 | K10: 1620 | L10: 1680 | M10: 1740 | N10: 1800
B11: Produktion, GWh | C11: 969 | D11: 1020 | E11: 1071 | F11: 1122 | G11: 1173 | H11: 1224 | I11: 1275 | J11: 1326 | K11: 1377 | L11: 1428 | M11: 1479 | N11: 1530
B16: Benyttelsestid | C16: 850 | D16: timer
D17: 2014 fremskrivning | F17: 2013 fremskrivning
C18: År | D18: Kapacitet | E18: Produktion | F18: Kapacitet | G18: Produktion
D19: MW | E19: GWh | F19: MW | G19: GWh
C20: 2013 | D20: 331 | E20: 281.35 | F20: 331 | G20: 281.35
C21: 2014 | D21: 560 | E21: 476 | F21: 560 | G21: 476
C22: 2015 | D22: 670 | E22: 569.5 | F22: 650 | G22: 552.5
C23: 2016 | D23: 720 | E23: 612 | F23: 740 | G23: 629
C24: 2017 | D24: 750 | E24: 637.5 | F24: 830 | G24: 705.5
C25: 2018 | D25: 780 | E25: 663 | F25: 920 | G25: 782
C26: 2019 | D26: 810 | E26: 688.5 | F26: 1010 | G26: 858.5
C27: 2020 | D27: 840 | E27: 714 | F27: 1100 | G27: 935
C28: 2021 | D28: 900 | E28: 765 | F28: 1156.25 | G28: 982.8125
C29: 2022 | D29: 960 | E29: 816 | F29: 1212.5 | G29: 1030.625
C30: 2023 | D30: 1020 | E30: 867 | F30: 1268.75 | G30: 1078.4375
C31: 2024 | D31: 1080 | E31: 918 | F31: 1325 | G31: 1126.25
C32: 2025 | D32: 1140 | E32: 969 | F32: 1381.25 | G32: 1174.0625
C33: 2026 | D33: 1200 | E33: 1020 | F33: 1437.5 | G33: 1221.875
C34: 2027 | D34: 1260 | E34: 1071 | F34: 1493.75 | G34: 1269.6875
C35: 2028 | D35: 1320 | E35: 1122 | F35: 1550 | G35: 1317.5
C36: 2029 | D36: 1380 | E36: 1173 | F36: 1606.25 | G36: 1365.3125
C37: 2030 | D37: 1440 | E37: 1224 | F37: 1662.5 | G37: 1413.125
C38: 2031 | D38: 1500 | E38: 1275 | F38: 1718.75 | G38: 1460.9375
C39: 2032 | D39: 1560 | E39: 1326 | F39: 1775 | G39: 1508.75
C40: 2033 | D40: 1620 | E40: 1377 | F40: 1831.25 | G40: 1556.5625
C41: 2034 | D41: 1680 | E41: 1428 | F41: 1887.5 | G41: 1604.375
C42: 2035 | D42: 1740 | E42: 1479 | F42: 1943.75 | G42: 1652.1875
C43: 2036 | D43: 1800 | E43: 1530 | F43: 2000 | G43: 1700

Sheet Kraftværker, Øst
A1: Kraftværker, Østdanmark | C1: Indholdsfortegnelse
A3: Alle kapaciteter er afrundet til nærmeste hele 5 MW
A4: Fremskrivning
F5: VB = Varmebinding
B7: Anlæg | C7: El | D7: El | E7: I drift | F7: Bemærkning | G7: VB
C8: Maks | D8: Nominel
C9: MW | D9: MW | E9: År | G9: J/N
B10: Amagerværket Blok 1 | C10: 70 | D10: 70 | E10: 2009 | F10: Modtryksværk. Fyrer med træpiller og olie. Kan også fyre med kul. | G10: ja
B11: Amagerværket Blok 3 | C11: 265 | D11: 250 | E11: 1989 | F11: 15 MW overlastevne. Kul-/sværolie fyret. | G11: ja
B12: Asnæsværket Blok 2 | C12: 140 | D12: 140 | E12: 1961 | F12: Kul-/sværolie fyret Kører ikke samtidig med blok 5. | G12: ja
B13: Avedøreværket Blok 1 | C13: 265 | D13: 265 | E13: 1990 | F13: 15 MW overlastevne. Kul-/oliefyret. Forventes at kunne fyre med 50% træpiller fra Q3 2016. | G13: ja
B14: Avedøreværket Blok 2 | C14: 545 | D14: 545 | E14: 2002 | F14: Gas/halm/kul/træ fyret. Kapacitet på hovedkedlen er 360 MW | G14: ja
B15: H.C. Ørsted Værkets Blok 7 | C15: 75 | D15: 75 | E15: 1985 | F15: Naturgasfyret Ombygget i 1994. | G15: ja
B16: H.C. Ørsted Værkets Blok 8 | C16: 25 | D16: 25 | E16: 2004 | F16: Naturgasfyret. | G16: ja
B17: Kyndbyværkets Blok 21 | C17: 260 | D17: 260 | E17: 1974 | F17: Reserveanlæg. | G17: nej
B18: Kyndbyværkets Blok 22 | C18: 260 | D18: 260 | E18: 1976 | F18: Reserveanlæg. | G18: nej
B19: Kyndbyværkets Blok 41 | C19: 20 | D19: 20 | E19: 1974 | F19: Reserveanlæg. | G19: nej
B20: Kyndbyværkets Blok 51+52 | C20: 125 | D20: 125 | E20: 1973 | F20: Reserveanlæg. | G20: nej
B21: Masnedøværkets Blok 31 | C21: 70 | D21: 70 | E21: 1975 | F21: Reserveanlæg. | G21: nej
B22: I alt, centrale værker primo 2014 | C22: 2120 | D22: 2105
B23: Østkraft | C23: 90 | D23: 90 | G23: ja
B24: Decentrale værker Erhvervsværker Lokale værker inkl. regulerkraftanlæg | C24: 645 | D24: 645 | E24: Fra 2016 reduceres den samlede kapacitet af de decentrale kraftværker. Dette skyldes dels forventede ændringer i tilskudsordningen og dermed lukninger samt omlægninger til ren varmeproduktion.
B25: I alt, primo 2014 | C25: =+C24+C23+C22 -> 2855 | D25: =+D24+D23+D22 -> 2840
B27: Betinget driftklar
B28: Asnæsværket Blok 5 | C28: 665 | D28: 640 | E28: 1981 | F28: Kul-/sværolie fyret Betinget driftklar. Forlænget startvarsel på 160 timer Backup for ASV2, hvorfor de ikke kører samtidig. | G28: ja
Z29: 315
B30: Status konserveret
B31: H.C. Ørsted Værket Sekt. 2 (Blok1-4) | C31: 10 | D31: 10 | E31: 1954 | F31: Naturgasfyret Ombygget i 1994. Ikke driftsklar | G31: ja
B32: Svanemølleværkets Blok 1-3 | C32: 10 | D32: 10 | E32: 1953 | F32: Naturgas/letolie fyret. Renoveret i 2007/2008. Status konserveret - ikke driftsklar | G32: ja
B33: Svanemølleværkets Blok 7 | C33: 60 | D33: 60 | E33: 1995 | F33: Naturgas/letolie fyret. Status konserveret - ikke driftsklar | G33: ja
B34: Stigsnæsværkets Blok 2 | C34: 265 | D34: 265 | E34: 1970 | F34: Kul-/sværolie fyret. Status konserveret - ikke driftsklar

Sheet Kraftværker, Vest
A1: Kraftværker, Vestdanmark | C1: Indholdsfortegnelse
A3: Alle kapaciteter er afrundet til nærmeste hele 5 MW
A4: Fremskrivning
F5: VB = Varmebinding
B7: Anlæg | C7: El | D7: El | E7: I drift | F7: Bemærkning | G7: VB
C8: Maks | D8: Nominel
C9: MW | D9: MW | E9: År | G9: J/N
B10: Fynsværket Blok 7 | C10: 410 | D10: 380 | E10: 1991 | F10: 30 MW overlastevne Fyrer med stenkul. | G10: ja
B11: Fynsværket Blok 8 | C11: 35 | D11: 35 | E11: 2009 | F11: Halmfyret | G11: ja
B12: Nordjyllandsværket Blok 3 | C12: 410 | D12: 380 | E12: 1998 | F12: 30 MW overlast. Fyrer med stenkul. | G12: ja
B13: Nordjyllandsværket GT blok | C13: 25 | D13: 25 | E13: 1976 | F13: Gasturbine på Nordjyllandsværket.
B14: Skærbækværket Blok 3 | C14: 430 | D14: 390 | E14: 1997 | F14: Ca. 35-40 MW overlastevne. Naturgasfyret. | G14: ja
B15: Studstrupværket Blok 3 | C15: 380 | D15: 360 | E15: 1984 | F15: Fyrer med stenkul Forventes at fyre med 100 % træpiller fra Q3 2016. Kører ikke samtidig med blok 4. Overlastevne 20 MW | G15: ja
B16: Studstrupværket Blok 5 | C16: 15 | D16: 15 | E16: 1986 | F16: Reserveanlæg | G16: nej
B17: Esbjergværket Blok 3 | C17: 400 | D17: 370 | E17: 1992 | F17: 30 MW overlastevne. Fyret med stenkul/olie. | G17: ja
B18: Herningværket | C18: 90 | D18: 90 | E18: 1982 | F18: Biomassefyret fra 2009. | G18: ja
B19: I alt, centrale værker primo 2014 | C19: =SUM(C10:C18) -> 2195 | D19: =SUM(D10:D18) -> 2045
B21: Decentrale værker Erhvervsværker Lokale værker inkl. regulerkraftanlæg | C21: 1845 | D21: 1845 | E21: Fra 2017 reduceres den samlede kapacitet af de decentrale kraftværker. Dette skyldes dels forventede ændringer i tilskudsordningen og dermed lukninger samt omlægninger til ren varmeproduktion. Randersværket på 52 MW er holdt uden for denne beregning.
B22: I alt, 2014 | C22: =+C21+C19 -> 4040 | D22: =+D21+D19 -> 3890
B24: Betinget driftklar
B25: Studstrupværket Blok 4 | C25: 380 | D25: 360 | E25: 1985 | F25: Fyret med Stenkul Betinget driftsklar. Opstartstid er 3 mdr. Overlastevne 20 MW | G25: ja
B26: Nordjyllandsværket Blok 2 | C26: 220 | D26: 220 | E26: 1977 | F26: Fyret med stenkul Mølposelagt med to dages startvarsel. Ikke i drift samtidig med blok 3. | G26: ja
B28: Status konserveret
B29: Enstedværket Blok 3 | C29: 665 | D29: 665 | E29: 1979 | F29: Fyrer med stenkul. Heraf 40 MW biomasse. Status konserveret - ikke driftsklar | G29: ja

Sheet Udlandsforbindelser
A1: Udlandsforbindelser | C1: Indholdsfortegnelse
A2: Første hele driftsår
A3: Udlandsforbindelser [GW] | B3: 2014 | D3: 2015 | F3: 2016 | H3: 2017 | J3: 2018
B4: Eksport | C4: Import | D4: Eksport | E4: Import | F4: Eksport | G4: Import | H4: Eksport | I4: Import | J4: Eksport | K4: Import
A5: Østdanmark - Sverige (Øresund) | B5: 1.7 | C5: 1.3 | D5: 1.7 | E5: 1.3 | F5: 1.7 | G5: 1.3 | H5: 1.7 | I5: 1.3 | J5: 1.7 | K5: 1.3
A6: Østdanmark - Tyskland (Kontek) | B6: 0.6 | C6: 0.6 | D6: 0.6 | E6: 0.6 | F6: 0.6 | G6: 0.6 | H6: 0.6 | I6: 0.6 | J6: 0.6 | K6: 0.6
A7: Østdanmark - Tyskland (Kriegers Flak) | B7: 0 | C7: 0 | D7: 0 | E7: 0 | F7: 0 | G7: 0 | H7: 0 | I7: 0 | J7: 0 | K7: 0
A8: Vestdanmark - Norge (Skagerrak) | B8: 1 | C8: 1 | D8: 1.7 | E8: 1.7 | F8: 1.7 | G8: 1.7 | H8: 1.7 | I8: 1.7 | J8: 1.7 | K8: 1.7
A9: Vestdanmark - Sverige (Konti-Skan) | B9: 0.74 | C9: 0.68 | D9: 0.74 | E9: 0.68 | F9: 0.74 | G9: 0.68 | H9: 0.74 | I9: 0.68 | J9: 0.74 | K9: 0.68
A10: Vestdanmark - Tyskland | B10: 1.78 | C10: 1.5 | D10: 1.78 | E10: 1.5 | F10: 1.78 | G10: 1.5 | H10: 1.78 | I10: 1.5 | J10: 2.5 | K10: 2.5
A11: Vestdanmark - Holland (COBRAcable) | B11: 0 | C11: 0 | D11: 0 | E11: 0 | F11: 0 | G11: 0 | H11: 0 | I11: 0 | J11: 0 | K11: 0
A12: Vestdanmark - Østdanmark | B12: 0.6 | C12: 0.6 | D12: 0.6 | E12: 0.6 | F12: 0.6 | G12: 0.6 | H12: 0.6 | I12: 0.6 | J12: 0.6 | K12: 0.6
A14: Udlandsforbindelser [GW] | B14: 2019 | D14: 2020 | F14: 2025 | H14: 2030 | J14: 2035
B15: Eksport | C15: Import | D15: Eksport | E15: Import | F15: Eksport | G15: Import | H15: Eksport | I15: Import | J15: Eksport | K15: Import
A16: Østdanmark - Sverige (Øresund) | B16: 1.7 | C16: 1.3 | D16: 1.7 | E16: 1.3 | F16: 1.7 | G16: 1.3 | H16: 1.7 | I16: 1.3 | J16: 1.7 | K16: 1.3
A17: Østdanmark - Tyskland (Kontek) | B17: 0.6 | C17: 0.6 | D17: 0.6 | E17: 0.6 | F17: 0.6 | G17: 0.6 | H17: 0.6 | I17: 0.6 | J17: 0.6 | K17: 0.6
A18: Østdanmark - Tyskland (Kriegers Flak) | B18: 0.4 | C18: 0.4 | D18: 0.4 | E18: 0.4 | F18: 0.4 | G18: 0.4 | H18: 0.4 | I18: 0.4 | J18: 0.4 | K18: 0.4
A19: Vestdanmark - Norge (Skagerrak) | B19: 1.7 | C19: 1.7 | D19: 1.7 | E19: 1.7 | F19: 1.7 | G19: 1.7 | H19: 1.7 | I19: 1.7 | J19: 1.7 | K19: 1.7
A20: Vestdanmark - Sverige (Konti-Skan) | B20: 0.74 | C20: 0.68 | D20: 0.74 | E20: 0.68 | F20: 0.74 | G20: 0.68 | H20: 0.74 | I20: 0.68 | J20: 0.74 | K20: 0.68
A21: Vestdanmark - Tyskland | B21: 2.5 | C21: 2.5 | D21: 2.5 | E21: 2.5 | F21: 3 | G21: 3 | H21: 3 | I21: 3 | J21: 3 | K21: 3
A22: Vestdanmark - Holland (COBRAcable) | B22: 0 | C22: 0 | D22: 0.7 | E22: 0.7 | F22: 0.7 | G22: 0.7 | H22: 0.7 | I22: 0.7 | J22: 0.7 | K22: 0.7
A23: Vestdanmark - Østdanmark | B23: 0.6 | C23: 0.6 | D23: 0.6 | E23: 0.6 | F23: 0.6 | G23: 0.6 | H23: 0.6 | I23: 0.6 | J23: 0.6 | K23: 0.6

Sheet Gasdata - forbrug og produktion
A1: Forbrug | B1: Indholdsfortegnelse
A2: Skal opdateres ved næste SIVAEL kørsel
A3: Opgraderet biogas: Data fra ENS, BF12
B6: Forbrug og eksport via gasinfrastruturen | J6: Produktion og import via gasinfrastruturen
B8: År | C8: Danmark | D8: Sverige | E8: Sverige + Danmark | F8: Kommerciel eksport til Tyskland | G8: Forbrug Danmark og Sverige samt eksport til Tyskland | J8: År | K8: Forventede leverancer fra Nordsøen til Danmark (Nybro) | L8: Opgraderet biogas | M8: Import fra Tyskland (Entry Ellund) | N8: Samlede leverancer til Danmark incl. opgraderet biogas
A10: [PJ] | B10: 2014 | C10: =C41 -> 134.077503 | D10: =D41 -> 48.17736 | E10: 182.254863 | F10: 21.78 | G10: 204.034863 | I10: [PJ] | J10: 2014 | K10: =K41 -> 112.64616 | L10: =L41 -> 0.7 | M10: 90.70983504 | N10: 204.055995
B11: 2015 | C11: =C42 -> 124.1003208 | D11: 47.6955864 | E11: 171.7959072 | F11: 13.068 | G11: 184.8639072 | J11: 2015 | K11: =K42 -> 86.16168 | L11: 1.1 | M11: 97.5905172 | N11: 184.8521972
B12: 2016 | C12: =C43 -> 128.5891454 | D12: 47.21863054 | E12: 175.8077759 | F12: 13.068 | G12: 188.8757759 | J12: 2016 | K12: =K43 -> 67.25664 | L12: 1.4 | M12: 120.199464 | N12: 188.856104
B13: 2017 | C13: =C44 -> 124.5088034 | D13: 46.74644423 | E13: 171.2552476 | F13: 13.068 | G13: 184.3232476 | J13: 2017 | K13: =K44 -> 62.20368 | L13: 1.9 | M13: 120.199464 | N13: 184.303144
B14: 2018 | C14: =C45 -> 120.7127674 | D14: 46.27897979 | E14: 166.9917472 | F14: 13.068 | G14: 180.0597472 | J14: 2018 | K14: =K45 -> 57.54276 | L14: 2.3 | M14: 120.199464 | N14: 180.042224
B15: 2019 | C15: =C46 -> 115.3648631 | D15: 45.81618999 | E15: 161.1810531 | F15: 13.068 | G15: 174.2490531 | J15: 2019 | K15: =K46 -> 51.74928 | L15: 2.3 | M15: 120.199464 | N15: 174.248744
B16: 2020 | C16: =C47 -> 109.1060802 | D16: 45.35802809 | E16: 154.4641083 | F16: 13.068 | G16: 167.5321083 | J16: 2020 | K16: =K47 -> 44.4312 | L16: 2.9 | M16: 120.199464 | N16: 167.530664
B17: 2021 | C17: =C48 -> 106.5337044 | D17: 44.90444781 | E17: 151.4381522 | F17: 13.068 | G17: 164.5061522 | J17: 2021 | K17: =K48 -> 41.29488 | L17: 3 | M17: 120.199464 | N17: 164.494344
B18: 2022 | C18: =C49 -> 104.3884246 | D18: 44.45540333 | E18: 148.8438279 | F18: 13.068 | G18: 161.9118279 | J18: 2022 | K18: =K49 -> 38.59416 | L18: 3.1 | M18: 120.199464 | N18: 161.893624
B19: 2023 | C19: =C50 -> 99.37436827 | D19: 44.0108493 | E19: 143.3852176 | F19: 13.068 | G19: 156.4532176 | J19: 2023 | K19: =K50 -> 33.06204 | L19: 3.2 | M19: 120.199464 | N19: 156.461504
B20: 2024 | C20: =C51 -> 94.36031194 | D20: 43.57074081 | E20: 137.9310527 | F20: 13.068 | G20: 150.9990527 | J20: 2024 | K20: =K51 -> 27.48636 | L20: 3.3 | M20: 120.199464 | N20: 150.985824
B21: 2025 | C21: =C52 -> 89.3462556 | D21: 43.1350334 | E21: 132.481289 | F21: 13.068 | G21: 145.549289 | J21: 2025 | K21: =K52 -> 21.95424 | L21: 3.4 | M21: 120.199464 | N21: 145.553704
B22: 2026 | C22: =C53 -> 87.94885715 | D22: 42.70368306 | E22: 130.6525402 | F22: 13.068 | G22: 143.7205402 | J22: 2026 | K22: =K53 -> 20.0376 | L22: 3.5 | M22: 120.199464 | N22: 143.737064
B23: 2027 | C23: =C54 -> 86.9580734 | D23: 42.27664623 | E23: 129.2347196 | F23: 13.068 | G23: 142.3027196 | J23: 2027 | K23: =K54 -> 18.513 | L23: 3.6 | M23: 120.199464 | N23: 142.312464
B24: 2028 | C24: =C55 -> 85.90218712 | D24: 41.85387977 | E24: 127.7560669 | F24: 13.068 | G24: 140.8240669 | J24: 2028 | K24: =K55 -> 16.94484 | L24: 3.7 | M24: 120.199464 | N24: 140.844304
B25: 2029 | C25: =C56 -> 85.47095281 | D25: 41.43534097 | E25: 126.9062938 | F25: 9.801 | G25: 136.7072938 | J25: 2029 | K25: =K56 -> 12.71952 | L25: 3.8 | M25: 120.199464 | N25: 136.718984
B26: 2030 | C26: =C57 -> 84.73246146 | D26: 41.02098756 | E26: 125.753449 | F26: 8.8209 | G26: 134.574349 | J26: 2030 | K26: =K57 -> 10.4544 | L26: 3.9 | M26: 120.199464 | N26: 134.553864
B27: 2031 | C27: =C58 -> 83.13864261 | D27: 40.61077769 | E27: 123.7494203 | F27: 8.379855 | G27: 132.1292753 | J27: 2031 | K27: =K58 -> 7.92792 | L27: 4 | M27: 120.199464 | N27: 132.127384
B28: 2032 | C28: =C59 -> 82.44971641 | D28: 40.20466991 | E28: 122.6543863 | F28: 5.8658985 | G28: 128.5202848 | J28: 2032 | K28: =K59 -> 4.09464 | L28: 4.1 | M28: 120.3202848 | N28: 128.5149248
B29: 2033 | C29: =C60 -> 81.32350106 | D29: 39.80262321 | E29: 121.1261243 | F29: 2.93294925 | G29: 124.0590735 | J29: 2033 | K29: =K60 -> 4.18176 | L29: 4.2 | M29: 115.6590735 | N29: 124.0408335
B30: 2034 | C30: =C61 -> 82.1595414 | D30: 39.40459698 | E30: 121.5641384 | F30: 2.93294925 | G30: 124.4970876 | J30: 2034 | K30: =K61 -> 4.18176 | L30: 4.2 | M30: 116.0970876 | N30: 124.4788476
B31: 2035 | C31: =C62 -> 81.92036217 | D31: 39.01055101 | E31: 120.9309132 | F31: 0 | G31: 120.9338461 | J31: 2035 | K31: =K62 -> 4.18176 | L31: 4.2 | M31: 112.5338461 | N31: 120.9156061
A39: I PJ | B39: År | C39: Danmark | D39: Sverige | E39: Sverige + Danmark | F39: Kommerciel eksport til Tyskland | G39: Forbrug Danmark og Sverige samt eksport til Tyskland | I39: I PJ | J39: År | K39: Forventede leverancer fra Nordsøen til Danmark (Nybro) | L39: Opgraderet biogas | M39: Import fra Tyskland (Entry Ellund) | N39: Samlede leverancer til Danmark incl. opgraderet biogas
B41: 2014 | C41: 134.077503 | D41: 48.17736 | E41: 182.254863 | F41: 21.78 | G41: 204.034863 | J41: 2014 | K41: 112.64616 | L41: 0.7 | M41: 90.70983504 | N41: 204.055995
B42: 2015 | C42: 124.1003208 | D42: 47.6955864 | E42: 171.7959072 | F42: 13.068 | G42: 184.8639072 | J42: 2015 | K42: 86.16168 | L42: 1.1 | M42: 97.5905172 | N42: 184.8521972
B43: 2016 | C43: 128.5891454 | D43: 47.21863054 | E43: 175.8077759 | F43: 13.068 | G43: 188.8757759 | J43: 2016 | K43: 67.25664 | L43: 1.4 | M43: 120.199464 | N43: 188.856104
B44: 2017 | C44: 124.5088034 | D44: 46.74644423 | E44: 171.2552476 | F44: 13.068 | G44: 184.3232476 | J44: 2017 | K44: 62.20368 | L44: 1.9 | M44: 120.199464 | N44: 184.303144
B45: 2018 | C45: 120.7127674 | D45: 46.27897979 | E45: 166.9917472 | F45: 13.068 | G45: 180.0597472 | J45: 2018 | K45: 57.54276 | L45: 2.3 | M45: 120.199464 | N45: 180.042224
B46: 2019 | C46: 115.3648631 | D46: 45.81618999 | E46: 161.1810531 | F46: 13.068 | G46: 174.2490531 | J46: 2019 | K46: 51.74928 | L46: 2.3 | M46: 120.199464 | N46: 174.248744
B47: 2020 | C47: 109.1060802 | D47: 45.35802809 | E47: 154.4641083 | F47: 13.068 | G47: 167.5321083 | J47: 2020 | K47: 44.4312 | L47: 2.9 | M47: 120.199464 | N47: 167.530664
B48: 2021 | C48: 106.5337044 | D48: 44.90444781 | E48: 151.4381522 | F48: 13.068 | G48: 164.5061522 | J48: 2021 | K48: 41.29488 | L48: 3 | M48: 120.199464 | N48: 164.494344
B49: 2022 | C49: 104.3884246 | D49: 44.45540333 | E49: 148.8438279 | F49: 13.068 | G49: 161.9118279 | J49: 2022 | K49: 38.59416 | L49: 3.1 | M49: 120.199464 | N49: 161.893624
B50: 2023 | C50: 99.37436827 | D50: 44.0108493 | E50: 143.3852176 | F50: 13.068 | G50: 156.4532176 | J50: 2023 | K50: 33.06204 | L50: 3.2 | M50: 120.199464 | N50: 156.461504
B51: 2024 | C51: 94.36031194 | D51: 43.57074081 | E51: 137.9310527 | F51: 13.068 | G51: 150.9990527 | J51: 2024 | K51: 27.48636 | L51: 3.3 | M51: 120.199464 | N51: 150.985824
B52: 2025 | C52: 89.3462556 | D52: 43.1350334 | E52: 132.481289 | F52: 13.068 | G52: 145.549289 | J52: 2025 | K52: 21.95424 | L52: 3.4 | M52: 120.199464 | N52: 145.553704
B53: 2026 | C53: 87.94885715 | D53: 42.70368306 | E53: 130.6525402 | F53: 13.068 | G53: 143.7205402 | J53: 2026 | K53: 20.0376 | L53: 3.5 | M53: 120.199464 | N53: 143.737064
B54: 2027 | C54: 86.9580734 | D54: 42.27664623 | E54: 129.2347196 | F54: 13.068 | G54: 142.3027196 | J54: 2027 | K54: 18.513 | L54: 3.6 | M54: 120.199464 | N54: 142.312464
B55: 2028 | C55: 85.90218712 | D55: 41.85387977 | E55: 127.7560669 | F55: 13.068 | G55: 140.8240669 | J55: 2028 | K55: 16.94484 | L55: 3.7 | M55: 120.199464 | N55: 140.844304
B56: 2029 | C56: 85.47095281 | D56: 41.43534097 | E56: 126.9062938 | F56: 9.801 | G56: 136.7072938 | J56: 2029 | K56: 12.71952 | L56: 3.8 | M56: 120.199464 | N56: 136.718984
B57: 2030 | C57: 84.73246146 | D57: 41.02098756 | E57: 125.753449 | F57: 8.8209 | G57: 134.574349 | J57: 2030 | K57: 10.4544 | L57: 3.9 | M57: 120.199464 | N57: 134.553864
B58: 2031 | C58: 83.13864261 | D58: 40.61077769 | E58: 123.7494203 | F58: 8.379855 | G58: 132.1292753 | J58: 2031 | K58: 7.92792 | L58: 4 | M58: 120.199464 | N58: 132.127384
B59: 2032 | C59: 82.44971641 | D59: 40.20466991 | E59: 122.6543863 | F59: 5.8658985 | G59: 128.5202848 | J59: 2032 | K59: 4.09464 | L59: 4.1 | M59: 120.3202848 | N59: 128.5149248
B60: 2033 | C60: 81.32350106 | D60: 39.80262321 | E60: 121.1261243 | F60: 2.93294925 | G60: 124.0590735 | J60: 2033 | K60: 4.18176 | L60: 4.2 | M60: 115.6590735 | N60: 124.0408335
B61: 2034 | C61: 82.1595414 | D61: 39.40459698 | E61: 121.5641384 | F61: 2.93294925 | G61: 124.4970876 | J61: 2034 | K61: 4.18176 | L61: 4.2 | M61: 116.0970876 | N61: 124.4788476
B62: 2035 | C62: 81.92036217 | D62: 39.01055101 | E62: 120.9309132 | F62: 0 | G62: 120.9338461 | J62: 2035 | K62: 4.18176 | L62: 4.2 | M62: 112.5338461 | N62: 120.9156061
AD93: 2041 | AE93: 8.989352345 | AG93: 0 | AH93: 426.2950359 | AI93: 8.989352345
AD94: 2042 | AE94: 8.000523587 | AG94: 0 | AH94: 383.6655323 | AI94: 8.000523587

Sheet Gasdata - forbindelser
A1: Udlandsforbindelser | D1: Indholdsfortegnelse

Sheet Fjernvarmeforbruget
A1: Fjernvarmeforbruget | D1: Indholdsfortegnelse
A4: TJ | C4: 2014 | D4: 2015 | E4: 2016 | F4: 2017 | G4: 2018 | H4: 2019 | I4: 2020 | J4: 2021 | K4: 2022 | L4: 2023 | M4: 2024 | N4: 2025 | O4: 2026 | P4: 2027 | Q4: 2028 | R4: 2029 | S4: 2030 | T4: 2031 | U4: 2032 | V4: 2033 | W4: 2034 | X4: 2035
B5: Husholdning | C5: 68115.96434 | D5: 67488.32621 | E5: 66711.88472 | F5: 66001.11653 | G5: 65261.96741 | H5: 64517.24678 | I5: 64073.70996 | J5: 64357.12025 | K5: 64640.84753 | L5: 64934.89277 | M5: 65212.24549 | N5: 65477.63763 | O5: 65863.42327 | P5: 66287.1946 | Q5: 66711.10685 | R5: 67134.80828 | S5: 67554.59419 | T5: 67970.88899 | U5: 68379.67652 | V5: 68786.25628 | W5: 69189.98307 | X5: 69586.13703
B6: Erhverv | C6: 38783.94932 | D6: 38237.19142 | E6: 37811.60664 | F6: 37571.23239 | G6: 37324.99046 | H6: 37387.82077 | I6: 37276.41655 | J6: 36984.51249 | K6: 36781.79421 | L6: 36512.0326 | M6: 36060.67996 | N6: 35693.55365 | O6: 35341.48575 | P6: 35009.85853 | Q6: 34647.7162 | R6: 34286.27616 | S6: 34002.50019 | T6: 33707.96198 | U6: 33422.13064 | V6: 33055.59122 | W6: 32719.40969 | X6: 32457.09896
B7: Tab | C7: 26724.97842 | D7: 26431.37941 | E7: 26130.87284 | F7: 25893.08723 | G7: 25646.73947 | H7: 25476.26689 | I7: 25337.53163 | J7: 25335.40818 | K7: 25355.66043 | L7: 25361.73134 | M7: 25318.23136 | N7: 25292.79782 | O7: 25301.22725 | P7: 25324.26328 | Q7: 25339.70576 | R7: 25355.27111 | S7: 25389.27359 | T7: 25419.71274 | U7: 25450.45179 | V7: 25460.46187 | W7: 25477.34819 | X7: 25510.809
C12: 2014 | D12: 2015 | E12: 2016 | F12: 2017 | G12: 2018 | H12: 2019 | I12: 2020 | J12: 2021 | K12: 2022 | L12: 2023 | M12: 2024 | N12: 2025 | O12: 2026 | P12: 2027 | Q12: 2028 | R12: 2029 | S12: 2030 | T12: 2031 | U12: 2032 | V12: 2033 | W12: 2034 | X12: 2035
A13: MWh | B13: Husholdning | C13: 18921.10121 | D13: 18746.75728 | E13: 18531.07909 | F13: 18333.64348 | G13: 18128.32428 | H13: 17921.45744 | I13: 17798.25277 | J13: 17876.97785 | K13: 17955.79098 | L13: 18037.47022 | M13: 18114.51264 | N13: 18188.23268 | O13: 18295.39535 | P13: 18413.10961 | Q13: 18530.86301 | R13: 18648.55786 | S13: 18765.16505 | T13: 18880.8025 | U13: 18994.35459 | V13: 19107.29341 | W13: 19219.43974 | X13: 19329.48251
B14: Erhverv | C14: 10773.31926 | D14: 10621.44206 | E14: 10503.22407 | F14: 10436.45344 | G14: 10368.05291 | H14: 10385.50577 | I14: 10354.56015 | J14: 10273.47569 | K14: 10217.16506 | L14: 10142.23128 | M14: 10016.85555 | N14: 9914.876013 | O14: 9817.079374 | P14: 9724.960703 | Q14: 9624.365612 | R14: 9523.965599 | S14: 9445.138942 | T14: 9363.322772 | U14: 9283.925178 | V14: 9182.108672 | W14: 9088.724914 | X14: 9015.860821
B15: Tab | C15: 7423.605115 | D15: 7342.049836 | E15: 7258.575789 | F15: 7192.52423 | G15: 7124.094297 | H15: 7076.740803 | I15: 7038.20323 | J15: 7037.613384 | K15: 7043.239009 | L15: 7044.925373 | M15: 7032.842045 | N15: 7025.777172 | O15: 7028.118681 | P15: 7034.517578 | Q15: 7038.807156 | R15: 7043.130864 | S15: 7052.575999 | T15: 7061.031317 | U15: 7069.569942 | V15: 7072.35052 | W15: 7077.041164 | X15: 7086.335832
